Body Name,ONS SNAC ID,Pay Date,Transaction No,Amount �,Supplier Name,Company Registration No,Department,Account Name,CIPFA Service Reporting
Swale Borough Council,29UM,01/06/2016,1141945,669.56,ACORN MAINTENANCE SERVICES,3546898                  ,HOUSING SERVICES,Housing Renovation Grants,Not used in this Structure
Swale Borough Council,29UM,01/06/2016,1141852,39.17,ALLSTAR BUSINESS SOLUTIONS LTD - (DT),1073098                  ,DEMOCRATIC & ELECTORAL SERVICES,Petrol/Derv & Oil,Corporate & Democratic Core
Swale Borough Council,29UM,01/06/2016,1141852,26.53,ALLSTAR BUSINESS SOLUTIONS LTD - (DT),1073098                  ,SERVICE DELIVERY,Petrol/Derv & Oil,Cultural and Related Services
Swale Borough Council,29UM,01/06/2016,1141852,167.91,ALLSTAR BUSINESS SOLUTIONS LTD - (DT),1073098                  ,ENVIRONMENTAL RESPONSE TEAM,Fuel For Contract Vehicles,Internal Trading Cost Centres
Swale Borough Council,29UM,01/06/2016,1141852,61.18,ALLSTAR BUSINESS SOLUTIONS LTD - (DT),1073098                  ,LEISURE & OPEN SPACES,Fuel For Contract Vehicles,Cultural and Related Services
Swale Borough Council,29UM,01/06/2016,1141852,42.71,ALLSTAR BUSINESS SOLUTIONS LTD - (DT),1073098                  ,ENVIRONMENTAL RESPONSE TEAM,Fuel For Contract Vehicles,Environmental and Regulatory Services
Swale Borough Council,29UM,01/06/2016,1141259,250.00,ARVATO GOVERNMENT SERVICES LTD,5429280                  ,REVENUE SERVICES,NNDR Additional Rateable Values,Central Services to the Public
Swale Borough Council,29UM,01/06/2016,1141860,2050.00,BECKWITH CONSULTING LTD,5846072                  ,LEISURE & OPEN SPACES,Consultancy/Specialist Advice,Cultural and Related Services
Swale Borough Council,29UM,01/06/2016,1141735,700.00,BLUE TOWN REMEMBERED,                         ,TOURISM & SPORTS DEVELOPMENT,Grants & Subscriptions,Cultural and Related Services
Swale Borough Council,29UM,01/06/2016,1141609,4000.00,CACI LIMITED,1649776                  ,COMMISSIONING & CUSTOMER CONTACT,Computer Equipment & Materials,Internal Trading Cost Centres
Swale Borough Council,29UM,01/06/2016,1141895,270.00,CD SUPPLIES LTD,                         ,LEISURE & OPEN SPACES,Maintenance - Grounds,Cultural and Related Services
Swale Borough Council,29UM,01/06/2016,1141755,400.00,DHA PLANNING,2683290                  ,PLANNING SERVICES,Fees And Services,Internal Trading Cost Centres
Swale Borough Council,29UM,01/06/2016,1141798,310.03,EDF ENERGY,2228297                  ,LEISURE & OPEN SPACES,Electricity,Cultural and Related Services
Swale Borough Council,29UM,01/06/2016,1141734,1000.00,GREEN CUBE CIC,                         ,TOURISM & SPORTS DEVELOPMENT,Grants & Subscriptions,Cultural and Related Services
Swale Borough Council,29UM,01/06/2016,1141687,920.00,HAYMARKET PUBLISHING SERVICES LTD,                         ,PLANNING SERVICES,"Books, Journals & e - resources",Internal Trading Cost Centres
Swale Borough Council,29UM,01/06/2016,1141740,5259.85,IMPERIAL CIVIL ENFORCEMENT SOLUTIONS,2023383                  ,CAR PARKS,Computer Equipment & Materials,Highway and Transport Services
Swale Borough Council,29UM,01/06/2016,1141740,5259.86,IMPERIAL CIVIL ENFORCEMENT SOLUTIONS,2023383                  ,CAR PARKS,Computer Equipment & Materials,Highway and Transport Services
Swale Borough Council,29UM,01/06/2016,1141947,5225.18,J & D SYSTEMS,                         ,HOUSING SERVICES,Housing Renovation Grants,Not used in this Structure
Swale Borough Council,29UM,01/06/2016,1141613,450.00,LEMAR LIMITED,04350292                 ,SERVICE DELIVERY,Private Contractors - CIS,Highway and Transport Services
Swale Borough Council,29UM,01/06/2016,1141613,334.00,LEMAR LIMITED,04350292                 ,SERVICE DELIVERY,Private Contractors - CIS,Highway and Transport Services
Swale Borough Council,29UM,01/06/2016,1141799,250.00,LEMAR LIMITED,04350292                 ,CAR PARKS,Maintenance - Grounds,Highway and Transport Services
Swale Borough Council,29UM,01/06/2016,1141799,170.00,LEMAR LIMITED,04350292                 ,CAR PARKS,Maintenance - Grounds,Highway and Transport Services
Swale Borough Council,29UM,01/06/2016,1141801,500.00,LEMAR LIMITED,04350292                 ,SERVICE DELIVERY,Private Contractors - CIS,Highway and Transport Services
Swale Borough Council,29UM,01/06/2016,1141801,900.00,LEMAR LIMITED,04350292                 ,SERVICE DELIVERY,Private Contractors - CIS,Highway and Transport Services
Swale Borough Council,29UM,01/06/2016,1141803,300.00,LEMAR LIMITED,04350292                 ,SERVICE DELIVERY,Private Contractors - CIS,Environmental and Regulatory Services
Swale Borough Council,29UM,01/06/2016,1141803,240.00,LEMAR LIMITED,04350292                 ,SERVICE DELIVERY,Private Contractors - CIS,Environmental and Regulatory Services
Swale Borough Council,29UM,01/06/2016,1141929,576.60,LYNSTED WITH KINGSDOWN SOCIETY,                         ,TOURISM & SPORTS DEVELOPMENT,Grants & Subscriptions,Cultural and Related Services
Swale Borough Council,29UM,01/06/2016,1141699,1920.00,MACDONALD & COMPANY FREELANCE LTD,3882135                  ,PLANNING SERVICES,Agency/Contract Staff,Internal Trading Cost Centres
Swale Borough Council,29UM,01/06/2016,1141654,1628.00,MATCHTECH,4426336                  ,PLANNING SERVICES,Agency/Contract Staff,Internal Trading Cost Centres
Swale Borough Council,29UM,01/06/2016,1141904,8045.97,MEDWAY COUNCIL,                         ,MKIP ENVIRONMENTAL SERVICES,Kcc Air Pollution Monitoring,Environmental and Regulatory Services
Swale Borough Council,29UM,01/06/2016,1141690,2000.00,REDACTED PERSONAL INFORMATION,                         ,PLANNING SERVICES,Legal Fees,Planning and Development Services
Swale Borough Council,29UM,01/06/2016,1141690,400.00,REDACTED PERSONAL INFORMATION,                         ,PLANNING SERVICES,Legal Fees,Planning and Development Services
Swale Borough Council,29UM,01/06/2016,1141691,600.00,REDACTED PERSONAL INFORMATION,                         ,MKIP LEGAL SERVICES,Consultancy/Specialist Advice,Internal Trading Cost Centres
Swale Borough Council,29UM,01/06/2016,1141691,120.00,REDACTED PERSONAL INFORMATION,                         ,MKIP LEGAL SERVICES,Consultancy/Specialist Advice,Internal Trading Cost Centres
Swale Borough Council,29UM,01/06/2016,1141926,650.00,REDACTED PERSONAL INFORMATION,                         ,HOUSING SERVICES,RDS - Landlord claim on Bond Scheme,Housing
Swale Borough Council,29UM,01/06/2016,1141710,1022.80,NORTH KENT ARCHITEC. CENTRE LTD,3284438                  ,PLANNING SERVICES,Fees And Services,Planning and Development Services
Swale Borough Council,29UM,01/06/2016,1141757,2108.00,ONLINE PLAYGROUNDS,3515119                  ,LEISURE & OPEN SPACES,Equipment Purchase,Cultural and Related Services
Swale Borough Council,29UM,01/06/2016,1141510,5363.72,PINSENT MASONS LLP,OC333653                 ,ECONOMIC DEVELOPMENT,Consultancy/Specialist Advice,Planning and Development Services
Swale Borough Council,29UM,01/06/2016,1141642,1900.00,PINSENT MASONS LLP,OC333653                 ,ECONOMIC DEVELOPMENT,Consultancy/Specialist Advice,Planning and Development Services
Swale Borough Council,29UM,01/06/2016,1141939,290.33,PORTAKABIN LIMITED,685303                   ,LEISURE & OPEN SPACES,Maintenance - Grounds,Environmental and Regulatory Services
Swale Borough Council,29UM,01/06/2016,1141943,505.50,PRECEPT CS LIMITED,07311462                 ,HOUSING SERVICES,Housing Renovation Grants,Not used in this Structure
Swale Borough Council,29UM,01/06/2016,1141806,2800.00,SHEPPEY PROMENADE,                         ,TOURISM & SPORTS DEVELOPMENT,Grants & Subscriptions,Cultural and Related Services
Swale Borough Council,29UM,01/06/2016,1141742,900.00,SHEPPEY UNITED YOUTH DISABILITY,                         ,TOURISM & SPORTS DEVELOPMENT,Grants & Subscriptions,Cultural and Related Services
Swale Borough Council,29UM,01/06/2016,1141901,650.00,SHEPPY GLASS CENTRE LTD,                         ,LEISURE & OPEN SPACES,Non-Planned Building Maintenance,Cultural and Related Services
Swale Borough Council,29UM,01/06/2016,1141854,376.32,SOUTHERN WATER SERVICES LIMITED,2366670                  ,SERVICE DELIVERY,Water - Metered,Cultural and Related Services
Swale Borough Council,29UM,01/06/2016,1141807,1000.00,SWALE ARTS FORUM,                         ,TOURISM & SPORTS DEVELOPMENT,Grants & Subscriptions,Cultural and Related Services
Swale Borough Council,29UM,01/06/2016,1141940,3200.00,T N DAVIS CHARTERED SURVEYORS,                         ,PROPERTY SERVICES,Consultancy/Specialist Advice,Internal Trading Cost Centres
Swale Borough Council,29UM,01/06/2016,1141638,1000.00,TAMESIDE MBC,                         ,REVENUE SERVICES,Grants & Subscriptions,Housing
Swale Borough Council,29UM,01/06/2016,1141858,250.00,TAYLOR BROTHERS LTD,                         ,SERVICE DELIVERY,Maintenance - Grounds,Cultural and Related Services
Swale Borough Council,29UM,01/06/2016,1141695,1353.90,THE JOHN WOODWARD PARTNERSHIP,                         ,PLANNING SERVICES,Fees And Services,Planning and Development Services
Swale Borough Council,29UM,01/06/2016,1141840,1230.00,VENN GROUP LIMITED,                         ,MKIP LEGAL SERVICES,Agency/Contract Staff,Internal Trading Cost Centres
Swale Borough Council,29UM,01/06/2016,1141841,900.00,VENN GROUP LIMITED,                         ,MKIP LEGAL SERVICES,Agency/Contract Staff,Internal Trading Cost Centres
Swale Borough Council,29UM,01/06/2016,1141842,1479.60,VENN GROUP LIMITED,                         ,MKIP LEGAL SERVICES,Agency/Contract Staff,Internal Trading Cost Centres
Swale Borough Council,29UM,01/06/2016,1141843,1189.00,VENN GROUP LIMITED,                         ,MKIP LEGAL SERVICES,Agency/Contract Staff,Internal Trading Cost Centres
Swale Borough Council,29UM,01/06/2016,1141844,922.50,VENN GROUP LIMITED,                         ,MKIP LEGAL SERVICES,Agency/Contract Staff,Internal Trading Cost Centres
Swale Borough Council,29UM,01/06/2016,1141602,905.03,WHISTL UK LIMITED,04417047                 ,REVENUE SERVICES,Postage,Central Services to the Public
Swale Borough Council,29UM,01/06/2016,1141602,452.52,WHISTL UK LIMITED,04417047                 ,REVENUE SERVICES,Postage,Housing
Swale Borough Council,29UM,01/06/2016,1141602,792.45,WHISTL UK LIMITED,04417047                 ,PROPERTY SERVICES,Postage,Holding Codes
Swale Borough Council,29UM,01/06/2016,1141754,1438.12,WHISTL UK LIMITED,04417047                 ,REVENUE SERVICES,Postage,Central Services to the Public
Swale Borough Council,29UM,01/06/2016,1141754,719.06,WHISTL UK LIMITED,04417047                 ,REVENUE SERVICES,Postage,Housing
Swale Borough Council,29UM,01/06/2016,1141754,492.61,WHISTL UK LIMITED,04417047                 ,PROPERTY SERVICES,Postage,Holding Codes
Swale Borough Council,29UM,01/06/2016,1141946,5438.34,WILLOW TREE HOME SOLUTIONS LTD,                         ,HOUSING SERVICES,Housing Renovation Grants,Not used in this Structure
Swale Borough Council,29UM,08/06/2016,1142128,576.90,ACORN MAINTENANCE SERVICES,3546898                  ,HOUSING SERVICES,Housing Renovation Grants,Not used in this Structure
Swale Borough Council,29UM,08/06/2016,1141949,15427.21,APCOA PARKING (UK) LTD,2572947                  ,CAR PARKS,Private Contractors,Highway and Transport Services
Swale Borough Council,29UM,08/06/2016,1141949,19284.01,APCOA PARKING (UK) LTD,2572947                  ,CAR PARKS,Private Contractors,Highway and Transport Services
Swale Borough Council,29UM,08/06/2016,1141988,4416.47,BLENWOOD LTD,4383277                  ,LEISURE & OPEN SPACES,Grounds Maint Suspense,Cultural and Related Services
Swale Borough Council,29UM,08/06/2016,1141989,1389.06,BLENWOOD LTD,4383277                  ,LEISURE & OPEN SPACES,Grounds Contract Variations,Cultural and Related Services
Swale Borough Council,29UM,08/06/2016,1142003,576.29,BLENWOOD LTD,4383277                  ,LEISURE & OPEN SPACES,Grounds Contract Variations,Cultural and Related Services
Swale Borough Council,29UM,08/06/2016,1142004,1842.88,BLENWOOD LTD,4383277                  ,LEISURE & OPEN SPACES,Maintenance - Grounds,Environmental and Regulatory Services
Swale Borough Council,29UM,08/06/2016,1141993,375.00,CHURCH JESUS CHRIST LATTER DAY ST,                         ,CAR PARKS,Rent,Highway and Transport Services
Swale Borough Council,29UM,08/06/2016,1142090,666.66,CLARKES SPORTS STUDIO,                         ,LEISURE & OPEN SPACES,Grants & Subscriptions,Cultural and Related Services
Swale Borough Council,29UM,08/06/2016,1141751,3946.32,COMENSURA LTD,04085767                 ,HUMAN RESOURCES,Agency/Contract Staff,Internal Trading Cost Centres
Swale Borough Council,29UM,08/06/2016,1141981,6189.74,COMENSURA LTD,04085767                 ,HUMAN RESOURCES,Agency/Contract Staff,Internal Trading Cost Centres
Swale Borough Council,29UM,08/06/2016,1141808,341.05,CONTRACT SECURITY SERVICES,2461362                  ,EXCHEQUER,Cash Security,Internal Trading Cost Centres
Swale Borough Council,29UM,08/06/2016,1141808,3533.46,CONTRACT SECURITY SERVICES,2461362                  ,CAR PARKS,Cash Security,Highway and Transport Services
Swale Borough Council,29UM,08/06/2016,1142100,1068.00,DRS DOORS LTD,07551854                 ,PROPERTY SERVICES,Buildings Maintenance,Cultural and Related Services
Swale Borough Council,29UM,08/06/2016,1142100,5400.21,DRS DOORS LTD,07551854                 ,PROPERTY SERVICES,Buildings Maintenance,Cultural and Related Services
Swale Borough Council,29UM,08/06/2016,1141865,42500.00,"DTZ CLIENT AC TESCO STORES, THE FORUM (RENT)",                         ,CAR PARKS,Rent,Highway and Transport Services
Swale Borough Council,29UM,08/06/2016,1141865,8500.00,"DTZ CLIENT AC TESCO STORES, THE FORUM (RENT)",                         ,CAR PARKS,Rent,Highway and Transport Services
Swale Borough Council,29UM,08/06/2016,1141664,300.00,DUE-NORTH LTD,                         ,CONTRACT & PROCUREMENT,Grants & Subscriptions,Internal Trading Cost Centres
Swale Borough Council,29UM,08/06/2016,1141899,1246.44,EDEN PARK (STMS) LTD,6116389                  ,LEISURE & OPEN SPACES,Equipment Purchase,Cultural and Related Services
Swale Borough Council,29UM,08/06/2016,1142040,346.98,EDF ENERGY,2228297                  ,SERVICE DELIVERY,Electricity,Cultural and Related Services
Swale Borough Council,29UM,08/06/2016,1142041,413.11,EDF ENERGY,2228297                  ,SERVICE DELIVERY,Electricity,Cultural and Related Services
Swale Borough Council,29UM,08/06/2016,1142042,290.54,EDF ENERGY,2228297                  ,MKIP ENVIRONMENTAL SERVICES,Electricity,Internal Trading Cost Centres
Swale Borough Council,29UM,08/06/2016,1142069,295.00,FIRE & SECURITY CONSULTANCY LTD,5946022                  ,PROPERTY SERVICES,Service Contracts,Corporate & Democratic Core
Swale Borough Council,29UM,08/06/2016,1141992,1718.75,GRAHAM BOULDEN & COMPANY,                         ,CAR PARKS,Rent,Highway and Transport Services
Swale Borough Council,29UM,08/06/2016,1142125,4191.00,HUBBARD & HOUGHTON CONSTRUCTION LTD,                         ,HOUSING SERVICES,Housing Renovation Grants,Not used in this Structure
Swale Borough Council,29UM,08/06/2016,1141809,20891.00,KGB CLEANING & SUPPORT SERVICES LTD,                         ,CONTRACT & PROCUREMENT,Private Contractors,Environmental and Regulatory Services
Swale Borough Council,29UM,08/06/2016,1142186,6.00,LAND REGISTRY - (DT),                         ,COMMUNITY SAFETY,Fees - Land Registry,Environmental and Regulatory Services
Swale Borough Council,29UM,08/06/2016,1142186,72.00,LAND REGISTRY - (DT),                         ,PROPERTY SERVICES,Fees - Land Registry,Trading Undertaking
Swale Borough Council,29UM,08/06/2016,1142186,79.00,LAND REGISTRY - (DT),                         ,REVENUE SERVICES,Fees - Land Registry,Central Services to the Public
Swale Borough Council,29UM,08/06/2016,1142186,129.00,LAND REGISTRY - (DT),                         ,PLANNING SERVICES,Fees - Land Registry,Planning and Development Services
Swale Borough Council,29UM,08/06/2016,1142186,30.00,LAND REGISTRY - (DT),                         ,LEISURE & OPEN SPACES,Fees - Land Registry,Internal Trading Cost Centres
Swale Borough Council,29UM,08/06/2016,1142186,105.00,LAND REGISTRY - (DT),                         ,ENVIRONMENTAL RESPONSE TEAM,Fees - Land Registry,Internal Trading Cost Centres
Swale Borough Council,29UM,08/06/2016,1142186,154.00,LAND REGISTRY - (DT),                         ,PLANNING SERVICES,Fees - Land Registry,Internal Trading Cost Centres
Swale Borough Council,29UM,08/06/2016,1142186,52.00,LAND REGISTRY - (DT),                         ,LEISURE & OPEN SPACES,Fees - Land Registry,Cultural and Related Services
Swale Borough Council,29UM,08/06/2016,1142186,24.00,LAND REGISTRY - (DT),                         ,LEISURE & OPEN SPACES,Fees - Land Registry,Cultural and Related Services
Swale Borough Council,29UM,08/06/2016,1142186,39.00,LAND REGISTRY - (DT),                         ,HOUSING SERVICES,Fees - Land Registry,Housing
Swale Borough Council,29UM,08/06/2016,1142186,21.00,LAND REGISTRY - (DT),                         ,HOUSING SERVICES,Fees - Land Registry,Housing
Swale Borough Council,29UM,08/06/2016,1142076,300.00,LEMAR LIMITED,04350292                 ,CAR PARKS,Maintenance - Grounds,Highway and Transport Services
Swale Borough Council,29UM,08/06/2016,1142076,135.00,LEMAR LIMITED,04350292                 ,CAR PARKS,Maintenance - Grounds,Highway and Transport Services
Swale Borough Council,29UM,08/06/2016,1142077,500.00,LEMAR LIMITED,04350292                 ,SERVICE DELIVERY,Private Contractors - CIS,Environmental and Regulatory Services
Swale Borough Council,29UM,08/06/2016,1142077,340.00,LEMAR LIMITED,04350292                 ,SERVICE DELIVERY,Private Contractors - CIS,Environmental and Regulatory Services
Swale Borough Council,29UM,08/06/2016,1141890,1575.00,LUSHLAND,4289261                  ,PLANNING SERVICES,Fees And Services,Planning and Development Services
Swale Borough Council,29UM,08/06/2016,1141974,387.16,LYRECO UK LTD,                         ,PROPERTY SERVICES,Paper,Internal Trading Cost Centres
Swale Borough Council,29UM,08/06/2016,1142015,387.16,LYRECO UK LTD,                         ,PROPERTY SERVICES,Paper,Internal Trading Cost Centres
Swale Borough Council,29UM,08/06/2016,1141937,1920.00,MACDONALD & COMPANY FREELANCE LTD,3882135                  ,PLANNING SERVICES,Agency/Contract Staff,Internal Trading Cost Centres
Swale Borough Council,29UM,08/06/2016,1141621,60582.73,MAIDSTONE BOROUGH COUNCIL,                         ,REVENUE SERVICES,Computer Equipment & Materials,Housing
Swale Borough Council,29UM,08/06/2016,1141892,30581.56,MAIDSTONE BOROUGH COUNCIL,                         ,CONTRACT & PROCUREMENT,Private Contractors,Environmental and Regulatory Services
Swale Borough Council,29UM,08/06/2016,1141889,1584.00,MATCHTECH,4426336                  ,PLANNING SERVICES,Agency/Contract Staff,Internal Trading Cost Centres
Swale Borough Council,29UM,08/06/2016,1142083,2450.00,MELENGA BUSINESS SOLUTIONS LTD,06148446                 ,FINANCIAL SERVICES,Agency/Contract Staff,Internal Trading Cost Centres
Swale Borough Council,29UM,08/06/2016,1141884,585.00,METRIC GROUP LTD,2560839                  ,CAR PARKS,Fees - Licence,Highway and Transport Services
Swale Borough Council,29UM,08/06/2016,1142009,6000.00,REDACTED PERSONAL INFORMATION,                         ,PLANNING SERVICES,Legal Fees,Internal Trading Cost Centres
Swale Borough Council,29UM,08/06/2016,1142009,1200.00,REDACTED PERSONAL INFORMATION,                         ,PLANNING SERVICES,Legal Fees,Internal Trading Cost Centres
Swale Borough Council,29UM,08/06/2016,1142032,1000.00,REDACTED PERSONAL INFORMATION,                         ,PLANNING SERVICES,Legal Fees,Planning and Development Services
Swale Borough Council,29UM,08/06/2016,1142032,200.00,REDACTED PERSONAL INFORMATION,                         ,PLANNING SERVICES,Legal Fees,Planning and Development Services
Swale Borough Council,29UM,08/06/2016,1142093,2250.00,REDACTED PERSONAL INFORMATION,                         ,MKIP LEGAL SERVICES,Consultancy/Specialist Advice,Internal Trading Cost Centres
Swale Borough Council,29UM,08/06/2016,1142005,300.00,NET CHURCH,                         ,DEMOCRATIC & ELECTORAL SERVICES,Hire Of Premises,Ledger/Suspense Codes
Swale Borough Council,29UM,08/06/2016,1141930,243.36,PHS GROUP LTD,770813                   ,PROPERTY SERVICES,Service Contracts,Corporate & Democratic Core
Swale Borough Council,29UM,08/06/2016,1141930,78.00,PHS GROUP LTD,770813                   ,PROPERTY SERVICES,Service Contracts,Corporate & Democratic Core
Swale Borough Council,29UM,08/06/2016,1141930,25.35,PHS GROUP LTD,770813                   ,PROPERTY SERVICES,Service Contracts,Corporate & Democratic Core
Swale Borough Council,29UM,08/06/2016,1141930,192.40,PHS GROUP LTD,770813                   ,PROPERTY SERVICES,Service Contracts,Corporate & Democratic Core
Swale Borough Council,29UM,08/06/2016,1142072,360.00,RIPPLEEFFECT,                         ,TOURISM & SPORTS DEVELOPMENT,Fees And Services,Cultural and Related Services
Swale Borough Council,29UM,08/06/2016,1141894,800.00,ROADMARKING EXCEL LTD,08121734                 ,CAR PARKS,Maintenance - Grounds,Highway and Transport Services
Swale Borough Council,29UM,08/06/2016,1141931,4851.71,ROYAL MAIL GROUP LTD,4138203                  ,DEMOCRATIC & ELECTORAL SERVICES,Postage,Ledger/Suspense Codes
Swale Borough Council,29UM,08/06/2016,1142008,1645.00,RP AUSTIN,                         ,MKIP LEGAL SERVICES,Agency/Contract Staff,Internal Trading Cost Centres
Swale Borough Council,29UM,08/06/2016,1141868,935.70,RSP RAIL TRAVEL ACCOUNT - (DT),                         ,FINANCIAL SERVICES,Travel Warrants (Staff Travel),Internal Trading Cost Centres
Swale Borough Council,29UM,08/06/2016,1142007,375.00,RURAL PLANNING LTD,4426249                  ,PLANNING SERVICES,Fees And Services,Planning and Development Services
Swale Borough Council,29UM,08/06/2016,1142089,9036.92,SERCO LEISURE OPERATING LIMITED,04687478                 ,LEISURE & OPEN SPACES,Procurement Contracts Only,Cultural and Related Services
Swale Borough Council,29UM,08/06/2016,1141941,302.50,SOLON SECURITY,03065075                 ,HOUSING SERVICES,Staying Put - Materials,Housing
Swale Borough Council,29UM,08/06/2016,1142126,7912.44,SOUTH EAST BUILDING CO LTD,1786838                  ,HOUSING SERVICES,Housing Renovation Grants,Not used in this Structure
Swale Borough Council,29UM,08/06/2016,1142053,4700.00,SWALE COMMUNITY LEISURE LIMITED,31132R                   ,LEISURE & OPEN SPACES,Procurement Contracts Only,Cultural and Related Services
Swale Borough Council,29UM,08/06/2016,1142054,11829.38,SWALE COMMUNITY LEISURE LIMITED,31132R                   ,LEISURE & OPEN SPACES,Procurement Contracts Only,Cultural and Related Services
Swale Borough Council,29UM,08/06/2016,1142094,11829.38,SWALE COMMUNITY LEISURE LIMITED,31132R                   ,LEISURE & OPEN SPACES,Procurement Contracts Only,Cultural and Related Services
Swale Borough Council,29UM,08/06/2016,1142095,4700.00,SWALE COMMUNITY LEISURE LIMITED,31132R                   ,LEISURE & OPEN SPACES,Procurement Contracts Only,Cultural and Related Services
Swale Borough Council,29UM,08/06/2016,1142096,4700.00,SWALE COMMUNITY LEISURE LIMITED,31132R                   ,LEISURE & OPEN SPACES,Procurement Contracts Only,Cultural and Related Services
Swale Borough Council,29UM,08/06/2016,1142097,4436.68,SWALE COMMUNITY LEISURE LIMITED,31132R                   ,LEISURE & OPEN SPACES,Procurement Contracts Only,Cultural and Related Services
Swale Borough Council,29UM,08/06/2016,1142073,250.00,TAYLOR BROTHERS LTD,                         ,SERVICE DELIVERY,Maintenance - Grounds,Cultural and Related Services
Swale Borough Council,29UM,08/06/2016,1141997,240.00,TEDDSONS & SONS LTD,08945129                 ,LEISURE & OPEN SPACES,Maintenance - Grounds,Cultural and Related Services
Swale Borough Council,29UM,08/06/2016,1141997,88.40,TEDDSONS & SONS LTD,08945129                 ,LEISURE & OPEN SPACES,Maintenance - Grounds,Cultural and Related Services
Swale Borough Council,29UM,08/06/2016,1141998,650.00,TEDDSONS & SONS LTD,08945129                 ,LEISURE & OPEN SPACES,Maintenance - Grounds,Cultural and Related Services
Swale Borough Council,29UM,08/06/2016,1141998,194.03,TEDDSONS & SONS LTD,08945129                 ,LEISURE & OPEN SPACES,Maintenance - Grounds,Cultural and Related Services
Swale Borough Council,29UM,08/06/2016,1141999,360.00,TEDDSONS & SONS LTD,08945129                 ,LEISURE & OPEN SPACES,Maintenance - Grounds,Cultural and Related Services
Swale Borough Council,29UM,08/06/2016,1141999,80.00,TEDDSONS & SONS LTD,08945129                 ,LEISURE & OPEN SPACES,Maintenance - Grounds,Cultural and Related Services
Swale Borough Council,29UM,08/06/2016,1142116,240.00,TEDDSONS & SONS LTD,08945129                 ,LEISURE & OPEN SPACES,Maintenance - Grounds,Cultural and Related Services
Swale Borough Council,29UM,08/06/2016,1142116,202.90,TEDDSONS & SONS LTD,08945129                 ,LEISURE & OPEN SPACES,Maintenance - Grounds,Cultural and Related Services
Swale Borough Council,29UM,08/06/2016,1142116,91.68,TEDDSONS & SONS LTD,08945129                 ,LEISURE & OPEN SPACES,Maintenance - Grounds,Cultural and Related Services
Swale Borough Council,29UM,08/06/2016,1142117,220.00,TEDDSONS & SONS LTD,08945129                 ,LEISURE & OPEN SPACES,Maintenance - Grounds,Cultural and Related Services
Swale Borough Council,29UM,08/06/2016,1142117,280.00,TEDDSONS & SONS LTD,08945129                 ,LEISURE & OPEN SPACES,Maintenance - Grounds,Cultural and Related Services
Swale Borough Council,29UM,08/06/2016,1142117,480.00,TEDDSONS & SONS LTD,08945129                 ,LEISURE & OPEN SPACES,Maintenance - Grounds,Cultural and Related Services
Swale Borough Council,29UM,08/06/2016,1142016,922.50,VENN GROUP LIMITED,                         ,MKIP LEGAL SERVICES,Agency/Contract Staff,Internal Trading Cost Centres
Swale Borough Council,29UM,08/06/2016,1142017,1200.00,VENN GROUP LIMITED,                         ,MKIP LEGAL SERVICES,Agency/Contract Staff,Internal Trading Cost Centres
Swale Borough Council,29UM,08/06/2016,1142018,973.75,VENN GROUP LIMITED,                         ,MKIP LEGAL SERVICES,Agency/Contract Staff,Internal Trading Cost Centres
Swale Borough Council,29UM,08/06/2016,1142019,1290.00,VENN GROUP LIMITED,                         ,MKIP LEGAL SERVICES,Agency/Contract Staff,Internal Trading Cost Centres
Swale Borough Council,29UM,08/06/2016,1141982,322.00,WILLOW TREE HOME SOLUTIONS LTD,                         ,HOUSING SERVICES,Staying Put small repairs (contractors),Housing
Swale Borough Council,29UM,08/06/2016,1142006,310.00,WILLOW TREE HOME SOLUTIONS LTD,                         ,HOUSING SERVICES,Staying Put small repairs (contractors),Housing
Swale Borough Council,29UM,08/06/2016,1142086,825.00,WILLOW TREE HOME SOLUTIONS LTD,                         ,HOUSING SERVICES,Staying Put small repairs (contractors),Housing
Swale Borough Council,29UM,08/06/2016,1142108,720.00,WILLOW TREE HOME SOLUTIONS LTD,                         ,HOUSING SERVICES,Staying Put small repairs (contractors),Housing
Swale Borough Council,29UM,08/06/2016,1142127,6056.10,WILLOW TREE HOME SOLUTIONS LTD,                         ,HOUSING SERVICES,Housing Renovation Grants,Not used in this Structure
Swale Borough Council,29UM,09/06/2016,1141256,1163.86,LEE EVANS PARTNERSHIP,                         ,PROPERTY SERVICES,Communities Fund Expenditure,Ledger/Suspense Codes
Swale Borough Council,29UM,09/06/2016,1141888,-1163.86,LEE EVANS PARTNERSHIP,                         ,PROPERTY SERVICES,Communities Fund Expenditure,Ledger/Suspense Codes
Swale Borough Council,29UM,15/06/2016,1142222,1900.00,ACS SYSTEMS (UK) LTD,2988060                  ,ICT,Payments in Year,Ledger/Suspense Codes
Swale Borough Council,29UM,15/06/2016,1142137,1550.67,ADELANTE SOFTWARE LTD,4450760                  ,ICT,Computer Equipment & Materials,Internal Trading Cost Centres
Swale Borough Council,29UM,15/06/2016,1142143,700.00,AGE UK FAVERSHAM & SITTINGBOURNE,                         ,COMMUNITY SAFETY,Grants & Subscriptions,Central Services to the Public
Swale Borough Council,29UM,15/06/2016,1142147,285.00,AGE UK FAVERSHAM & SITTINGBOURNE,                         ,TOURISM & SPORTS DEVELOPMENT,Grants & Subscriptions,Cultural and Related Services
Swale Borough Council,29UM,15/06/2016,1141324,-250.00,ALD AUTOMOTIVE,                         ,PROPERTY SERVICES,Electric Running Costs,Environmental and Regulatory Services
Swale Borough Council,29UM,15/06/2016,1142124,310.00,REDACTED PERSONAL INFORMATION,                         ,REVENUE SERVICES,Ex-Gratia Payments,Housing
Swale Borough Council,29UM,15/06/2016,1142296,413.00,ASCENDIT LIFTS LTD,3493530                  ,HOUSING SERVICES,Housing Renovation Grants,Not used in this Structure
Swale Borough Council,29UM,15/06/2016,1141987,107451.36,BLENWOOD LTD,4383277                  ,LEISURE & OPEN SPACES,Grounds Maint Suspense,Cultural and Related Services
Swale Borough Council,29UM,15/06/2016,1142227,700.00,BLUE TOWN REMEMBERED,                         ,TOURISM & SPORTS DEVELOPMENT,Grants & Subscriptions,Cultural and Related Services
Swale Borough Council,29UM,15/06/2016,1142228,920.00,BLUE TOWN REMEMBERED,                         ,TOURISM & SPORTS DEVELOPMENT,Grants & Subscriptions,Cultural and Related Services
Swale Borough Council,29UM,15/06/2016,1141549,22242.62,BT REDCARE,1800000                  ,COMMUNITY SAFETY,CCTV Line Rental,Environmental and Regulatory Services
Swale Borough Council,29UM,15/06/2016,1142152,8281.88,BT REDCARE,1800000                  ,COMMUNITY SAFETY,CCTV Line Rental,Environmental and Regulatory Services
Swale Borough Council,29UM,15/06/2016,1141925,4387.06,CAPITA BUSINESS SERVICES LTD,                         ,REVENUE SERVICES,Computer Equipment & Materials,Housing
Swale Borough Council,29UM,15/06/2016,1142194,877.50,CIVICA UK LIMITED,1628868                  ,REVENUE SERVICES,Computer Equipment & Materials,Central Services to the Public
Swale Borough Council,29UM,15/06/2016,1142194,877.50,CIVICA UK LIMITED,1628868                  ,REVENUE SERVICES,Computer Equipment & Materials,Housing
Swale Borough Council,29UM,15/06/2016,1142136,682.71,CLEAR CHANNEL UK LTD,                         ,COMMUNICATIONS,Advertising & Promotion,Internal Trading Cost Centres
Swale Borough Council,29UM,15/06/2016,1142197,717.43,COMENSURA LTD,04085767                 ,HUMAN RESOURCES,Agency/Contract Staff,Internal Trading Cost Centres
Swale Borough Council,29UM,15/06/2016,1141440,1736.23,DHA PLANNING,2683290                  ,PROPERTY SERVICES,Consultancy/Specialist Advice,Internal Trading Cost Centres
Swale Borough Council,29UM,15/06/2016,1141441,2037.11,DHA PLANNING,2683290                  ,PROPERTY SERVICES,Consultancy/Specialist Advice,Internal Trading Cost Centres
Swale Borough Council,29UM,15/06/2016,1141442,1106.34,DHA PLANNING,2683290                  ,PROPERTY SERVICES,Consultancy/Specialist Advice,Internal Trading Cost Centres
Swale Borough Council,29UM,15/06/2016,1142251,572.00,DISCLOSURE & BARRING SERVICE (DT),                         ,SERVICE DELIVERY,Fees And Services,Environmental and Regulatory Services
Swale Borough Council,29UM,15/06/2016,1142297,4600.00,DOLPHIN STAIRLIFTS (KENT),04181846                 ,HOUSING SERVICES,Housing Renovation Grants,Not used in this Structure
Swale Borough Council,29UM,15/06/2016,1141617,10860.97,DOVER DISTRICT COUNCIL,                         ,HOUSING SERVICES,Computer Equipment & Materials,Housing
Swale Borough Council,29UM,15/06/2016,1142271,260.68,EDF ENERGY,2228297                  ,COMMUNITY SAFETY,Electricity,Cultural and Related Services
Swale Borough Council,29UM,15/06/2016,1141536,146.67,EDF ENERGY CUSTOMERS PLC,                         ,HOUSING SERVICES,Electricity,Housing
Swale Borough Council,29UM,15/06/2016,1141536,116.19,EDF ENERGY CUSTOMERS PLC,                         ,HOUSING SERVICES,Gas,Housing
Swale Borough Council,29UM,15/06/2016,1142144,500.00,FAVERSHAM RECREATION BOWLS CLUB,                         ,COMMUNITY SAFETY,Grants & Subscriptions,Central Services to the Public
Swale Borough Council,29UM,15/06/2016,1142231,450.00,GULLY HOWARD TECHNICAL,5128356                  ,COMMUNITY SAFETY,Non-Planned Building Maintenance,Cultural and Related Services
Swale Borough Council,29UM,15/06/2016,1142217,443.94,GUYS & ST THOMAS NHS FOUNDATION TRUST,                         ,FINANCIAL SERVICES,Awaiting Allocation,Ledger/Suspense Codes
Swale Borough Council,29UM,15/06/2016,1142291,250.00,HARTLIP VILLAGE HALL,                         ,DEMOCRATIC & ELECTORAL SERVICES,Hire Of Premises,Ledger/Suspense Codes
Swale Borough Council,29UM,15/06/2016,1142293,5400.00,HUBBARD & HOUGHTON CONSTRUCTION LTD,                         ,HOUSING SERVICES,Housing Renovation Grants,Not used in this Structure
Swale Borough Council,29UM,15/06/2016,1142294,9000.00,HUBBARD & HOUGHTON CONSTRUCTION LTD,                         ,HOUSING SERVICES,Housing Renovation Grants,Not used in this Structure
Swale Borough Council,29UM,15/06/2016,1142295,790.16,HUBBARD & HOUGHTON CONSTRUCTION LTD,                         ,HOUSING SERVICES,Housing Renovation Grants,Not used in this Structure
Swale Borough Council,29UM,15/06/2016,1140695,11000.00,IDOX SOFTWARE LTD,06706798                 ,DIRECTOR OF CORPORATE SERVICES,Computer Equipment & Materials,Environmental and Regulatory Services
Swale Borough Council,29UM,15/06/2016,1142201,2499.00,INCISIVE BUSINESS MEDIA LIMITED,9178013                  ,CHIEF EXECUTIVE,Prizes/Awards,Corporate & Democratic Core
Swale Borough Council,29UM,15/06/2016,1142052,737.67,JASMIL KENNELS,05595524                 ,ENVIRONMENTAL RESPONSE TEAM,Kennelling Of Dogs,Environmental and Regulatory Services
Swale Borough Council,29UM,15/06/2016,1142052,-220.00,JASMIL KENNELS,05595524                 ,ENVIRONMENTAL RESPONSE TEAM,Income collected by Dog Kennels,Environmental and Regulatory Services
Swale Borough Council,29UM,15/06/2016,1142266,650.00,REDACTED PERSONAL INFORMATION,                         ,HOUSING SERVICES,RDS - Landlord claim on Bond Scheme,Housing
Swale Borough Council,29UM,15/06/2016,1141708,9.50,KENT COUNTY COUNCIL,                         ,HOUSING SERVICES,Fees And Services,Housing
Swale Borough Council,29UM,15/06/2016,1141708,44.00,KENT COUNTY COUNCIL,                         ,HOUSING SERVICES,Fees And Services,Housing
Swale Borough Council,29UM,15/06/2016,1141708,47.50,KENT COUNTY COUNCIL,                         ,HOUSING SERVICES,Fees And Services,Housing
Swale Borough Council,29UM,15/06/2016,1141708,220.00,KENT COUNTY COUNCIL,                         ,HOUSING SERVICES,Fees And Services,Housing
Swale Borough Council,29UM,15/06/2016,1142233,500.00,KENT COUNTY COUNCIL,                         ,LEISURE & OPEN SPACES,Consultancy/Specialist Advice,Cultural and Related Services
Swale Borough Council,29UM,15/06/2016,1142277,152882.50,KENT COUNTY COUNCIL,                         ,PLANNING SERVICES,Payments in Year,Ledger/Suspense Codes
Swale Borough Council,29UM,15/06/2016,1142278,72195.80,KENT COUNTY COUNCIL,                         ,PLANNING SERVICES,Payments in Year,Ledger/Suspense Codes
Swale Borough Council,29UM,15/06/2016,1142279,121337.00,KENT COUNTY COUNCIL,                         ,PLANNING SERVICES,Payments in Year,Ledger/Suspense Codes
Swale Borough Council,29UM,15/06/2016,1142280,37196.92,KENT COUNTY COUNCIL,                         ,PLANNING SERVICES,Payments in Year,Ledger/Suspense Codes
Swale Borough Council,29UM,15/06/2016,1142281,26897.92,KENT COUNTY COUNCIL,                         ,PLANNING SERVICES,Payments in Year,Ledger/Suspense Codes
Swale Borough Council,29UM,15/06/2016,1142282,676.87,KENT COUNTY COUNCIL,                         ,PLANNING SERVICES,Payments in Year,Ledger/Suspense Codes
Swale Borough Council,29UM,15/06/2016,1142012,330.00,KENT INVICTA CHAMBER OF COMMERCE,2794615                  ,ECONOMIC DEVELOPMENT,Fees And Services,Planning and Development Services
Swale Borough Council,29UM,15/06/2016,1142034,1550.00,KENT MESSENGER LTD,505554                   ,COMMUNICATIONS,Advertising & Promotion,Internal Trading Cost Centres
Swale Borough Council,29UM,15/06/2016,1142223,1145.00,KENT MESSENGER LTD,505554                   ,COMMUNICATIONS,Advertising & Promotion,Internal Trading Cost Centres
Swale Borough Council,29UM,15/06/2016,1142205,11309.15,KINGDOM SECURITY LIMITED,                         ,ENVIRONMENTAL RESPONSE TEAM,Fees And Services,Planning and Development Services
Swale Borough Council,29UM,15/06/2016,1142115,1920.00,MACDONALD & COMPANY FREELANCE LTD,3882135                  ,PLANNING SERVICES,Agency/Contract Staff,Internal Trading Cost Centres
Swale Borough Council,29UM,15/06/2016,1141733,2485.00,MAGEES GUESTHOUSE,                         ,HOUSING SERVICES,B & B - Landlords Payments,Housing
Swale Borough Council,29UM,15/06/2016,1142045,2730.00,MAGEES GUESTHOUSE,                         ,HOUSING SERVICES,B & B - Landlords Payments,Housing
Swale Borough Council,29UM,15/06/2016,1142140,2240.00,MAGEES GUESTHOUSE,                         ,HOUSING SERVICES,B & B - Landlords Payments,Housing
Swale Borough Council,29UM,15/06/2016,1142037,62024.63,MAIDSTONE BOROUGH COUNCIL,                         ,HUMAN RESOURCES,MKIP Charges for HR Service,Internal Trading Cost Centres
Swale Borough Council,29UM,15/06/2016,1142215,71335.88,MAIDSTONE BOROUGH COUNCIL,                         ,CONTRACT & PROCUREMENT,Private Contractors,Environmental and Regulatory Services
Swale Borough Council,29UM,15/06/2016,1142215,191669.35,MAIDSTONE BOROUGH COUNCIL,                         ,CONTRACT & PROCUREMENT,Private Contractors,Environmental and Regulatory Services
Swale Borough Council,29UM,15/06/2016,1142216,33378.59,MAIDSTONE BOROUGH COUNCIL,                         ,CONTRACT & PROCUREMENT,Private Contractors,Environmental and Regulatory Services
Swale Borough Council,29UM,15/06/2016,1142226,71335.88,MAIDSTONE BOROUGH COUNCIL,                         ,CONTRACT & PROCUREMENT,Private Contractors,Environmental and Regulatory Services
Swale Borough Council,29UM,15/06/2016,1142226,191669.35,MAIDSTONE BOROUGH COUNCIL,                         ,CONTRACT & PROCUREMENT,Private Contractors,Environmental and Regulatory Services
Swale Borough Council,29UM,15/06/2016,1142091,1628.00,MATCHTECH,4426336                  ,PLANNING SERVICES,Agency/Contract Staff,Internal Trading Cost Centres
Swale Borough Council,29UM,15/06/2016,1142243,1628.00,MATCHTECH,4426336                  ,PLANNING SERVICES,Agency/Contract Staff,Internal Trading Cost Centres
Swale Borough Council,29UM,15/06/2016,1141688,2301.60,MEDWAY ACCOMMODATION LIMITED,                         ,HOUSING SERVICES,B & B - Landlords Payments,Housing
Swale Borough Council,29UM,15/06/2016,1141688,479.50,MEDWAY ACCOMMODATION LIMITED,                         ,HOUSING SERVICES,B & B - Landlords Payments,Housing
Swale Borough Council,29UM,15/06/2016,1141689,2312.00,MEDWAY ACCOMMODATION LIMITED,                         ,HOUSING SERVICES,B & B - Landlords Payments,Housing
Swale Borough Council,29UM,15/06/2016,1141689,481.67,MEDWAY ACCOMMODATION LIMITED,                         ,HOUSING SERVICES,B & B - Landlords Payments,Housing
Swale Borough Council,29UM,15/06/2016,1141986,465.50,MEDWAY ACCOMMODATION LIMITED,                         ,HOUSING SERVICES,B & B - Landlords Payments,Housing
Swale Borough Council,29UM,15/06/2016,1141986,2234.40,MEDWAY ACCOMMODATION LIMITED,                         ,HOUSING SERVICES,B & B - Landlords Payments,Housing
Swale Borough Council,29UM,15/06/2016,1142104,2102.40,MEDWAY ACCOMMODATION LIMITED,                         ,HOUSING SERVICES,B & B - Landlords Payments,Housing
Swale Borough Council,29UM,15/06/2016,1142104,438.00,MEDWAY ACCOMMODATION LIMITED,                         ,HOUSING SERVICES,B & B - Landlords Payments,Housing
Swale Borough Council,29UM,15/06/2016,1142252,2075.20,MEDWAY ACCOMMODATION LIMITED,                         ,HOUSING SERVICES,B & B - Landlords Payments,Housing
Swale Borough Council,29UM,15/06/2016,1142252,432.33,MEDWAY ACCOMMODATION LIMITED,                         ,HOUSING SERVICES,B & B - Landlords Payments,Housing
Swale Borough Council,29UM,15/06/2016,1142241,4000.00,MEDWAY COUNCIL,                         ,CHIEF EXECUTIVE,Regeneration Fund Expenditure,Ledger/Suspense Codes
Swale Borough Council,29UM,15/06/2016,1141886,5000.00,MEDWAY PUBLIC SERVICES LTD,10041989                 ,HOUSING SERVICES,Homelessness  Prevention Services,Housing
Swale Borough Council,29UM,15/06/2016,1141887,2219.21,MEDWAY PUBLIC SERVICES LTD,10041989                 ,COMMUNITY SAFETY,CCTV Monitoring Service,Environmental and Regulatory Services
Swale Borough Council,29UM,15/06/2016,1142195,993.08,METRIC GROUP LTD,2560839                  ,CAR PARKS,Maintenance - Grounds,Highway and Transport Services
Swale Borough Council,29UM,15/06/2016,1141752,1578.00,MIDLAND SOFTWARE LTD,1852206                  ,HUMAN RESOURCES,Computer Equipment & Materials,Internal Trading Cost Centres
Swale Borough Council,29UM,15/06/2016,1142283,2362.68,MIDLANDS SIGNS LEICESTER LTD,1778323                  ,SERVICE DELIVERY,Private Contractors - CIS,Highway and Transport Services
Swale Borough Council,29UM,15/06/2016,1142119,500.00,REDACTED PERSONAL INFORMATION,                         ,HOUSING SERVICES,RDS - Rent in Advance (Supporting People),Housing
Swale Borough Council,29UM,15/06/2016,1142123,500.00,REDACTED PERSONAL INFORMATION,                         ,HOUSING SERVICES,RDS - Rent in Advance (Supporting People),Housing
Swale Borough Council,29UM,15/06/2016,1142219,340.00,MR J W GATES,                         ,SERVICE DELIVERY,Maintenance - Grounds,Cultural and Related Services
Swale Borough Council,29UM,15/06/2016,1142219,100.00,MR J W GATES,                         ,SERVICE DELIVERY,Maintenance - Grounds,Cultural and Related Services
Swale Borough Council,29UM,15/06/2016,1142109,475.00,REDACTED PERSONAL INFORMATION,                         ,HOUSING SERVICES,RDS - Landlord claim on Bond Scheme,Housing
Swale Borough Council,29UM,15/06/2016,1142114,627.92,NPOWER,3432100                  ,COMMUNITY SAFETY,Electricity,Cultural and Related Services
Swale Borough Council,29UM,15/06/2016,1142150,32.85,P&MM LTD,1090180                  ,HUMAN RESOURCES,Fees And Services,Corporate & Democratic Core
Swale Borough Council,29UM,15/06/2016,1141994,512.94,PETER BRETT ASSOCIATES LLP,OC334398                 ,PLANNING SERVICES,Fees And Services,Planning and Development Services
Swale Borough Council,29UM,15/06/2016,1142259,431.97,PRIMESIGHT,1847728                  ,COMMUNICATIONS,Advertising & Promotion,Internal Trading Cost Centres
Swale Borough Council,29UM,15/06/2016,1142193,380.00,PUTLANDS VETERINARY SURGERY,                         ,ENVIRONMENTAL RESPONSE TEAM,Fees - Veterinary,Environmental and Regulatory Services
Swale Borough Council,29UM,15/06/2016,1142255,350.00,QUEENBOROUGH TOWN COMMUNITY CENTRE,                         ,DEMOCRATIC & ELECTORAL SERVICES,Hire Of Premises,Ledger/Suspense Codes
Swale Borough Council,29UM,15/06/2016,1142162,302.00,RAMADA PLAZA HOTEL,6190786                  ,TOURISM & SPORTS DEVELOPMENT,Conference,Internal Trading Cost Centres
Swale Borough Council,29UM,15/06/2016,1141861,875.00,REARDON PROPERTIES,                         ,HOUSING SERVICES,B & B - Landlords Payments,Housing
Swale Borough Council,29UM,15/06/2016,1141862,490.00,REARDON PROPERTIES,                         ,HOUSING SERVICES,B & B - Landlords Payments,Housing
Swale Borough Council,29UM,15/06/2016,1141869,784.60,REARDON PROPERTIES,                         ,HOUSING SERVICES,B & B - Landlords Payments,Housing
Swale Borough Council,29UM,15/06/2016,1141950,490.00,REARDON PROPERTIES,                         ,HOUSING SERVICES,B & B - Landlords Payments,Housing
Swale Borough Council,29UM,15/06/2016,1141951,835.00,REARDON PROPERTIES,                         ,HOUSING SERVICES,B & B - Landlords Payments,Housing
Swale Borough Council,29UM,15/06/2016,1142112,692.23,ROYAL MAIL GROUP LTD,4138203                  ,REVENUE SERVICES,Postage,Central Services to the Public
Swale Borough Council,29UM,15/06/2016,1142112,6092.44,ROYAL MAIL GROUP LTD,4138203                  ,DEMOCRATIC & ELECTORAL SERVICES,Postage,Ledger/Suspense Codes
Swale Borough Council,29UM,15/06/2016,1142044,650.00,S1 LTD,                         ,HOUSING SERVICES,RDS - Landlord claim on Bond Scheme,Housing
Swale Borough Council,29UM,15/06/2016,1142230,400.00,SHEPPEY COMMUNITY MEDIA CENTRE,                         ,COMMUNITY SAFETY,Grants & Subscriptions,Central Services to the Public
Swale Borough Council,29UM,15/06/2016,1142103,500.00,SHEPPEY ESTATES,                         ,HOUSING SERVICES,Homelessness  Prevention Services,Housing
Swale Borough Council,29UM,15/06/2016,1141530,400.00,SHEPPY GLASS CENTRE LTD,                         ,HOUSING SERVICES,Rechargeable Environ Works,Housing
Swale Borough Council,29UM,15/06/2016,1142320,700.00,SITT. & KEMSLEY LIGHT RAILWAY LTD,                         ,TOURISM & SPORTS DEVELOPMENT,Grants & Subscriptions,Cultural and Related Services
Swale Borough Council,29UM,15/06/2016,1142298,4750.00,SOUTH EAST BUILDING CO LTD,1786838                  ,HOUSING SERVICES,Housing Renovation Grants,Not used in this Structure
Swale Borough Council,29UM,15/06/2016,1142138,3109.57,SOUTHERN COMMUNICATIONS LTD,1328040                  ,ICT,Telephone,Corporate & Democratic Core
Swale Borough Council,29UM,15/06/2016,1139684,2208.38,SOUTHERN ELECTRIC,                         ,PROPERTY SERVICES,Electricity,Trading Undertaking
Swale Borough Council,29UM,15/06/2016,1142134,-2208.38,SOUTHERN ELECTRIC,                         ,PROPERTY SERVICES,Electricity,Trading Undertaking
Swale Borough Council,29UM,15/06/2016,1142135,603.91,SOUTHERN ELECTRIC,                         ,PROPERTY SERVICES,Electricity,Trading Undertaking
Swale Borough Council,29UM,15/06/2016,1141853,1093.87,SOUTHERN WATER SERVICES LIMITED,2366670                  ,CONTRACT & PROCUREMENT,Water - Metered,Environmental and Regulatory Services
Swale Borough Council,29UM,15/06/2016,1141857,269.89,SOUTHERN WATER SERVICES LIMITED,2366670                  ,CONTRACT & PROCUREMENT,Water - Metered,Environmental and Regulatory Services
Swale Borough Council,29UM,15/06/2016,1142229,690.00,SWALE COMMUNITY CENTRES,                         ,COMMUNITY SAFETY,Grants & Subscriptions,Central Services to the Public
Swale Borough Council,29UM,15/06/2016,1141905,2354.25,SWALE COMMUNITY LEISURE LIMITED,31132R                   ,DEMOCRATIC & ELECTORAL SERVICES,Hire Of Premises,Ledger/Suspense Codes
Swale Borough Council,29UM,15/06/2016,1142305,250.00,SWALE MARCHING BAND,                         ,COMMUNITY SAFETY,Grants & Subscriptions,Central Services to the Public
Swale Borough Council,29UM,15/06/2016,1142110,1190.00,SWALE PROPERTIES (KENT) LTD,                         ,HOUSING SERVICES,RDS - Rent in Advance (Supporting People),Housing
Swale Borough Council,29UM,15/06/2016,1142033,500.00,SYNERGY CONSTRUCTION & PROPERTY CONSULTANTS LLP,                         ,COMMUNITY SAFETY,Capitalised Fees And Charges,Not used in this Structure
Swale Borough Council,29UM,15/06/2016,1142262,360.00,TEDDSONS & SONS LTD,08945129                 ,LEISURE & OPEN SPACES,Maintenance - Grounds,Cultural and Related Services
Swale Borough Council,29UM,15/06/2016,1142262,182.65,TEDDSONS & SONS LTD,08945129                 ,LEISURE & OPEN SPACES,Maintenance - Grounds,Cultural and Related Services
Swale Borough Council,29UM,15/06/2016,1142264,480.00,TEDDSONS & SONS LTD,08945129                 ,LEISURE & OPEN SPACES,Maintenance - Grounds,Cultural and Related Services
Swale Borough Council,29UM,15/06/2016,1142264,125.40,TEDDSONS & SONS LTD,08945129                 ,LEISURE & OPEN SPACES,Maintenance - Grounds,Cultural and Related Services
Swale Borough Council,29UM,15/06/2016,1142207,399.48,THE NEW SHORT BROS COMMEMORATION SOC.,                         ,TOURISM & SPORTS DEVELOPMENT,Grants & Subscriptions,Cultural and Related Services
Swale Borough Council,29UM,15/06/2016,1142190,1254.75,TOTAL PRINT FINISHING SERVICES LTD,3045552                  ,PROPERTY SERVICES,Equipment Maintenance,Internal Trading Cost Centres
Swale Borough Council,29UM,15/06/2016,1142049,1695.00,TRAFALGAR TAVERN LTD,07999329                 ,HOUSING SERVICES,B & B - Landlords Payments,Housing
Swale Borough Council,29UM,15/06/2016,1142120,1610.00,TRAFALGAR TAVERN LTD,07999329                 ,HOUSING SERVICES,B & B - Landlords Payments,Housing
Swale Borough Council,29UM,15/06/2016,1142191,413.24,TRIBUNE GRAPHICS LTD,                         ,SERVICE DELIVERY,Maintenance - Grounds,Cultural and Related Services
Swale Borough Council,29UM,15/06/2016,1142099,1800.00,UNIT4 BUSINESS SOFTWARE LIMITED,1737985                  ,FINANCIAL SERVICES,Computer Equipment & Materials,Internal Trading Cost Centres
Swale Borough Council,29UM,15/06/2016,1142253,1468.96,VAN WALT LIMITED,1607564                  ,MKIP ENVIRONMENTAL SERVICES,Fees - Analysis / Monitoring,Environmental and Regulatory Services
Swale Borough Council,29UM,15/06/2016,1142212,600.00,VENN GROUP LIMITED,                         ,MKIP LEGAL SERVICES,Agency/Contract Staff,Internal Trading Cost Centres
Swale Borough Council,29UM,15/06/2016,1142213,922.50,VENN GROUP LIMITED,                         ,MKIP LEGAL SERVICES,Agency/Contract Staff,Internal Trading Cost Centres
Swale Borough Council,29UM,15/06/2016,1142214,615.00,VENN GROUP LIMITED,                         ,MKIP LEGAL SERVICES,Agency/Contract Staff,Internal Trading Cost Centres
Swale Borough Council,29UM,15/06/2016,1141739,675.00,VP PROPERTY DEVELOPMENT LTD,                         ,HOUSING SERVICES,B & B - Landlords Payments,Housing
Swale Borough Council,29UM,15/06/2016,1142319,300.00,WEST FAVERSHAM COMMUNITY ASSOCIATION,                         ,COMMUNITY SAFETY,Grants & Subscriptions,Central Services to the Public
Swale Borough Council,29UM,15/06/2016,1142064,518.49,WHISTL UK LIMITED,04417047                 ,REVENUE SERVICES,Postage,Central Services to the Public
Swale Borough Council,29UM,15/06/2016,1142064,259.24,WHISTL UK LIMITED,04417047                 ,REVENUE SERVICES,Postage,Housing
Swale Borough Council,29UM,15/06/2016,1142064,1055.42,WHISTL UK LIMITED,04417047                 ,PROPERTY SERVICES,Postage,Holding Codes
Swale Borough Council,29UM,15/06/2016,1142204,580.93,WHISTL UK LIMITED,04417047                 ,REVENUE SERVICES,Postage,Central Services to the Public
Swale Borough Council,29UM,15/06/2016,1142204,290.47,WHISTL UK LIMITED,04417047                 ,REVENUE SERVICES,Postage,Housing
Swale Borough Council,29UM,15/06/2016,1142204,718.78,WHISTL UK LIMITED,04417047                 ,PROPERTY SERVICES,Postage,Holding Codes
Swale Borough Council,29UM,15/06/2016,1142292,4373.10,WILLOW TREE HOME SOLUTIONS LTD,                         ,HOUSING SERVICES,Housing Renovation Grants,Not used in this Structure
Swale Borough Council,29UM,22/06/2016,1142508,11112.97,ACORN MAINTENANCE SERVICES,3546898                  ,HOUSING SERVICES,Housing Renovation Grants,Not used in this Structure
Swale Borough Council,29UM,22/06/2016,1142391,750.00,BENSTEDS CHARITY WAR MEMORIAL FUND,                         ,TOURISM & SPORTS DEVELOPMENT,Grants & Subscriptions,Cultural and Related Services
Swale Borough Council,29UM,22/06/2016,1142306,100.00,BROGDALE COLLECTIONS,06221780                 ,ECONOMIC DEVELOPMENT,Hire Of Premises,Planning and Development Services
Swale Borough Council,29UM,22/06/2016,1142306,41.04,BROGDALE COLLECTIONS,06221780                 ,ECONOMIC DEVELOPMENT,Catering Provisions,Planning and Development Services
Swale Borough Council,29UM,22/06/2016,1142306,205.21,BROGDALE COLLECTIONS,06221780                 ,ECONOMIC DEVELOPMENT,Catering Provisions,Planning and Development Services
Swale Borough Council,29UM,22/06/2016,1142306,20.00,BROGDALE COLLECTIONS,06221780                 ,ECONOMIC DEVELOPMENT,Hire Of Premises,Planning and Development Services
Swale Borough Council,29UM,22/06/2016,1142413,321.99,BROGDALE COLLECTIONS,06221780                 ,CHIEF EXECUTIVE,Catering Provisions,Internal Trading Cost Centres
Swale Borough Council,29UM,22/06/2016,1142488,350.00,CANTERBURY CITY COUNCIL,                         ,SERVICE DELIVERY,Grants & Subscriptions,Environmental and Regulatory Services
Swale Borough Council,29UM,22/06/2016,1142302,950.00,CART ASSIST LIMITED,                         ,COMMISSIONING & CUSTOMER CONTACT,Performance Fund Expenditure,Ledger/Suspense Codes
Swale Borough Council,29UM,22/06/2016,1142427,341.05,CONTRACT SECURITY SERVICES,2461362                  ,EXCHEQUER,Cash Security,Internal Trading Cost Centres
Swale Borough Council,29UM,22/06/2016,1142427,3520.98,CONTRACT SECURITY SERVICES,2461362                  ,CAR PARKS,Cash Security,Highway and Transport Services
Swale Borough Council,29UM,22/06/2016,1142402,305.00,COUNTRYWIDE ESTATE AGENTS,                         ,FINANCIAL SERVICES,Awaiting Allocation,Ledger/Suspense Codes
Swale Borough Council,29UM,22/06/2016,1142237,668.12,DHA PLANNING,2683290                  ,PROPERTY SERVICES,Consultancy/Specialist Advice,Internal Trading Cost Centres
Swale Borough Council,29UM,22/06/2016,1142238,411.92,DHA PLANNING,2683290                  ,PROPERTY SERVICES,Consultancy/Specialist Advice,Internal Trading Cost Centres
Swale Borough Council,29UM,22/06/2016,1142239,1467.59,DHA PLANNING,2683290                  ,PROPERTY SERVICES,Consultancy/Specialist Advice,Internal Trading Cost Centres
Swale Borough Council,29UM,22/06/2016,1142331,300.00,HOEY AINSCOUGH ASSOCIATES LTD,7923961                  ,DIRECTOR OF CORPORATE SERVICES,Grants & Subscriptions,Internal Trading Cost Centres
Swale Borough Council,29UM,22/06/2016,1142507,2005.00,HUBBARD & HOUGHTON CONSTRUCTION LTD,                         ,HOUSING SERVICES,Housing Renovation Grants,Not used in this Structure
Swale Borough Council,29UM,22/06/2016,1142429,335.90,INSIGHT DIRECT (UK) LTD,2579852                  ,ICT,Computer Equipment & Materials,Internal Trading Cost Centres
Swale Borough Council,29UM,22/06/2016,1142506,4698.00,J & D SYSTEMS,                         ,HOUSING SERVICES,Housing Renovation Grants,Not used in this Structure
Swale Borough Council,29UM,22/06/2016,1142130,3725.00,J N CLEARANCE,                         ,CONTRACT & PROCUREMENT,"Clearance Of Waste,Fly Tipping",Environmental and Regulatory Services
Swale Borough Council,29UM,22/06/2016,1142132,833.60,J N CLEARANCE,                         ,DEMOCRATIC & ELECTORAL SERVICES,Fees And Services,Ledger/Suspense Codes
Swale Borough Council,29UM,22/06/2016,1142420,350.00,KENT COMMUNITY RAIL PARTNERSHIP,                         ,TOURISM & SPORTS DEVELOPMENT,Grants & Subscriptions,Cultural and Related Services
Swale Borough Council,29UM,22/06/2016,1140800,807.93,KENT COUNTY COUNCIL (KCS),                         ,ICT,Equipment Rental,Holding Codes
Swale Borough Council,29UM,22/06/2016,1140801,-409.89,KENT COUNTY COUNCIL (KCS),                         ,ICT,Equipment Rental,Holding Codes
Swale Borough Council,29UM,22/06/2016,1140802,-3338.72,KENT COUNTY COUNCIL (KCS),                         ,ICT,Equipment Rental,Holding Codes
Swale Borough Council,29UM,22/06/2016,1140803,-3681.60,KENT COUNTY COUNCIL (KCS),                         ,ICT,Equipment Rental,Holding Codes
Swale Borough Council,29UM,22/06/2016,1140804,-3694.83,KENT COUNTY COUNCIL (KCS),                         ,ICT,Equipment Rental,Holding Codes
Swale Borough Council,29UM,22/06/2016,1141443,4341.17,KENT COUNTY COUNCIL (KCS),                         ,PROPERTY SERVICES,Electricity,Corporate & Democratic Core
Swale Borough Council,29UM,22/06/2016,1141474,2585.01,KENT COUNTY COUNCIL (KCS),                         ,PROPERTY SERVICES,Gas,Corporate & Democratic Core
Swale Borough Council,29UM,22/06/2016,1141875,340.50,KENT COUNTY COUNCIL (KCS),                         ,PROPERTY SERVICES,Service Contracts,Corporate & Democratic Core
Swale Borough Council,29UM,22/06/2016,1142221,260.42,KENT COUNTY COUNCIL (KCS),                         ,REVENUE SERVICES,Computer Equipment & Materials,Housing
Swale Borough Council,29UM,22/06/2016,1142246,4329.48,KENT COUNTY COUNCIL (KCS),                         ,PROPERTY SERVICES,Electricity,Corporate & Democratic Core
Swale Borough Council,29UM,22/06/2016,1142570,109.00,LAND REGISTRY - (DT),                         ,PROPERTY SERVICES,Fees - Land Registry,Trading Undertaking
Swale Borough Council,29UM,22/06/2016,1142570,173.00,LAND REGISTRY - (DT),                         ,REVENUE SERVICES,Fees - Land Registry,Central Services to the Public
Swale Borough Council,29UM,22/06/2016,1142570,100.00,LAND REGISTRY - (DT),                         ,PLANNING SERVICES,Fees - Land Registry,Planning and Development Services
Swale Borough Council,29UM,22/06/2016,1142570,115.00,LAND REGISTRY - (DT),                         ,ENVIRONMENTAL RESPONSE TEAM,Fees - Land Registry,Internal Trading Cost Centres
Swale Borough Council,29UM,22/06/2016,1142570,12.00,LAND REGISTRY - (DT),                         ,PLANNING SERVICES,Fees - Land Registry,Internal Trading Cost Centres
Swale Borough Council,29UM,22/06/2016,1142570,6.00,LAND REGISTRY - (DT),                         ,LEISURE & OPEN SPACES,Fees - Land Registry,Cultural and Related Services
Swale Borough Council,29UM,22/06/2016,1142570,39.00,LAND REGISTRY - (DT),                         ,HOUSING SERVICES,Fees - Land Registry,Housing
Swale Borough Council,29UM,22/06/2016,1142570,65.00,LAND REGISTRY - (DT),                         ,HOUSING SERVICES,Fees - Land Registry,Housing
Swale Borough Council,29UM,22/06/2016,1142354,750.00,LEMAR LIMITED,04350292                 ,CAR PARKS,Maintenance - Grounds,Highway and Transport Services
Swale Borough Council,29UM,22/06/2016,1142354,787.50,LEMAR LIMITED,04350292                 ,CAR PARKS,Maintenance - Grounds,Highway and Transport Services
Swale Borough Council,29UM,22/06/2016,1142356,35200.00,MAIDSTONE BOROUGH COUNCIL,                         ,DEMOCRATIC & ELECTORAL SERVICES,Grants & Subscriptions,Corporate & Democratic Core
Swale Borough Council,29UM,22/06/2016,1142568,1045308.00,MAIDSTONE BOROUGH COUNCIL - DT,                         ,FINANCIAL SERVICES,Tariff to Gvt,Taxation and Non-Specific Grant Income
Swale Borough Council,29UM,22/06/2016,1142390,950.00,MICROGEN BANKING SYSTEMS LTD,03089430                 ,ICT,Computer Equipment & Materials,Internal Trading Cost Centres
Swale Borough Council,29UM,22/06/2016,1142422,935.00,MIDLANDS SIGNS LEICESTER LTD,1778323                  ,SERVICE DELIVERY,Private Contractors - CIS,Highway and Transport Services
Swale Borough Council,29UM,22/06/2016,1142505,400.00,MILTON COURT PRIMARY ACADEMY,                         ,DEMOCRATIC & ELECTORAL SERVICES,Hire Of Premises,Ledger/Suspense Codes
Swale Borough Council,29UM,22/06/2016,1142307,250.00,MR J W GATES,                         ,SERVICE DELIVERY,Maintenance - Grounds,Cultural and Related Services
Swale Borough Council,29UM,22/06/2016,1142285,342.61,REDACTED PERSONAL INFORMATION,                         ,CAR PARKS,Season Tickets,Highway and Transport Services
Swale Borough Council,29UM,22/06/2016,1142353,252.75,NPOWER,                         ,CAR PARKS,Electricity,Highway and Transport Services
Swale Borough Council,29UM,22/06/2016,1142141,2887.50,P BINNIE CONSULTANCY LTD,07794784                 ,ECONOMIC DEVELOPMENT,Consultancy/Specialist Advice,Planning and Development Services
Swale Borough Council,29UM,22/06/2016,1142265,562.00,P&MM LTD,                         ,HUMAN RESOURCES,Fees And Services,Corporate & Democratic Core
Swale Borough Council,29UM,22/06/2016,1142436,5200.00,POSTAGE BY PHONE-PITNEY BOWES LTD (DT),                         ,PROPERTY SERVICES,Postage - Franking Machine,Holding Codes
Swale Borough Council,29UM,22/06/2016,1142436,5.00,POSTAGE BY PHONE-PITNEY BOWES LTD (DT),                         ,PROPERTY SERVICES,Postage - Franking Machine,Holding Codes
Swale Borough Council,29UM,22/06/2016,1142474,107.59,ROYAL MAIL GROUP LTD,4138203                  ,REVENUE SERVICES,Postage,Central Services to the Public
Swale Borough Council,29UM,22/06/2016,1142474,1161.37,ROYAL MAIL GROUP LTD,4138203                  ,DEMOCRATIC & ELECTORAL SERVICES,Postage,Ledger/Suspense Codes
Swale Borough Council,29UM,22/06/2016,1142475,4415.58,ROYAL MAIL GROUP LTD,4138203                  ,DEMOCRATIC & ELECTORAL SERVICES,Postage,Ledger/Suspense Codes
Swale Borough Council,29UM,22/06/2016,1142383,240.00,TEDDSONS & SONS LTD,08945129                 ,LEISURE & OPEN SPACES,Maintenance - Grounds,Cultural and Related Services
Swale Borough Council,29UM,22/06/2016,1142383,201.60,TEDDSONS & SONS LTD,08945129                 ,LEISURE & OPEN SPACES,Maintenance - Grounds,Cultural and Related Services
Swale Borough Council,29UM,22/06/2016,1142388,240.00,TEDDSONS & SONS LTD,08945129                 ,LEISURE & OPEN SPACES,Maintenance - Grounds,Cultural and Related Services
Swale Borough Council,29UM,22/06/2016,1142388,71.50,TEDDSONS & SONS LTD,08945129                 ,LEISURE & OPEN SPACES,Maintenance - Grounds,Cultural and Related Services
Swale Borough Council,29UM,22/06/2016,1142479,480.00,TEDDSONS & SONS LTD,08945129                 ,LEISURE & OPEN SPACES,Maintenance - Grounds,Cultural and Related Services
Swale Borough Council,29UM,22/06/2016,1142479,85.00,TEDDSONS & SONS LTD,08945129                 ,LEISURE & OPEN SPACES,Maintenance - Grounds,Cultural and Related Services
Swale Borough Council,29UM,22/06/2016,1142509,1561.00,TLC STAIRLIFTS LTD,OC337646                 ,HOUSING SERVICES,Housing Renovation Grants,Not used in this Structure
Swale Borough Council,29UM,22/06/2016,1142249,700.00,UP TO SPEED TRAINING LTD,6737787                  ,CONTRACT & PROCUREMENT,Fees And Services,Internal Trading Cost Centres
Swale Borough Council,29UM,22/06/2016,1142487,420.00,UPM TILHILL,3242286                  ,LEISURE & OPEN SPACES,Maintenance - Grounds,Cultural and Related Services
Swale Borough Council,29UM,22/06/2016,1142371,1148.00,VENN GROUP LIMITED,                         ,MKIP LEGAL SERVICES,Agency/Contract Staff,Internal Trading Cost Centres
Swale Borough Council,29UM,22/06/2016,1142372,880.00,VENN GROUP LIMITED,                         ,MKIP LEGAL SERVICES,Agency/Contract Staff,Internal Trading Cost Centres
Swale Borough Council,29UM,22/06/2016,1142373,922.50,VENN GROUP LIMITED,                         ,MKIP LEGAL SERVICES,Agency/Contract Staff,Internal Trading Cost Centres
Swale Borough Council,29UM,22/06/2016,1142374,1230.00,VENN GROUP LIMITED,                         ,MKIP LEGAL SERVICES,Agency/Contract Staff,Internal Trading Cost Centres
Swale Borough Council,29UM,22/06/2016,1142375,900.00,VENN GROUP LIMITED,                         ,MKIP LEGAL SERVICES,Agency/Contract Staff,Internal Trading Cost Centres
Swale Borough Council,29UM,22/06/2016,1142467,450.00,WEALD WOODSCAPES LTD,8028446                  ,LEISURE & OPEN SPACES,Maintenance - Grounds,Cultural and Related Services
Swale Borough Council,29UM,22/06/2016,1142489,300.00,WEALD WOODSCAPES LTD,8028446                  ,LEISURE & OPEN SPACES,Maintenance - Grounds,Cultural and Related Services
Swale Borough Council,29UM,22/06/2016,1142416,250.00,WEED MANAGEMENT LTD,4321175                  ,LEISURE & OPEN SPACES,Maintenance - Grounds,Cultural and Related Services
Swale Borough Council,29UM,22/06/2016,1142315,320.00,WEST FAVERSHAM COMMUNITY ASSOCIATION,                         ,DEMOCRATIC & ELECTORAL SERVICES,Hire Of Premises,Ledger/Suspense Codes
Swale Borough Council,29UM,23/06/2016,1142405,916.88,KENT INVICTA CHAMBER OF COMMERCE,2794615                  ,ECONOMIC DEVELOPMENT,Fees And Services,Planning and Development Services
Swale Borough Council,29UM,23/06/2016,1142406,-916.88,KENT INVICTA CHAMBER OF COMMERCE,2794615                  ,ECONOMIC DEVELOPMENT,Fees And Services,Planning and Development Services
Swale Borough Council,29UM,29/06/2016,1142718,360.00,ABCO ROOFING,                         ,HOUSING SERVICES,Housing Renovation Grants,Not used in this Structure
Swale Borough Council,29UM,29/06/2016,1142309,310.50,ACORN MAINTENANCE SERVICES,3546898                  ,HOUSING SERVICES,Staying Put small repairs (contractors),Housing
Swale Borough Council,29UM,29/06/2016,1142595,1400.00,ACS SYSTEMS (UK) LTD,2988060                  ,ICT,Payments in Year,Ledger/Suspense Codes
Swale Borough Council,29UM,29/06/2016,1142594,513.00,AKW MEDI-CARE LTD,2764920                  ,HOUSING SERVICES,Staying Put - Materials,Housing
Swale Borough Council,29UM,29/06/2016,1142225,1.71,ALLSTAR BUSINESS SOLUTIONS LTD - (DT),1073098                  ,DEMOCRATIC & ELECTORAL SERVICES,Petrol/Derv & Oil,Corporate & Democratic Core
Swale Borough Council,29UM,29/06/2016,1142225,38.57,ALLSTAR BUSINESS SOLUTIONS LTD - (DT),1073098                  ,SERVICE DELIVERY,Petrol/Derv & Oil,Cultural and Related Services
Swale Borough Council,29UM,29/06/2016,1142225,202.09,ALLSTAR BUSINESS SOLUTIONS LTD - (DT),1073098                  ,ENVIRONMENTAL RESPONSE TEAM,Fuel For Contract Vehicles,Internal Trading Cost Centres
Swale Borough Council,29UM,29/06/2016,1142225,60.85,ALLSTAR BUSINESS SOLUTIONS LTD - (DT),1073098                  ,LEISURE & OPEN SPACES,Fuel For Contract Vehicles,Cultural and Related Services
Swale Borough Council,29UM,29/06/2016,1142225,47.97,ALLSTAR BUSINESS SOLUTIONS LTD - (DT),1073098                  ,ENVIRONMENTAL RESPONSE TEAM,Fuel For Contract Vehicles,Environmental and Regulatory Services
Swale Borough Council,29UM,29/06/2016,1142225,1.71,ALLSTAR BUSINESS SOLUTIONS LTD - (DT),1073098                  ,HOUSING SERVICES,Fuel For Contract Vehicles,Housing
Swale Borough Council,29UM,29/06/2016,1142367,5869.74,ASTOMS LTD,08954375                 ,SERVICE DELIVERY,Buildings Maintenance,Cultural and Related Services
Swale Borough Council,29UM,29/06/2016,1142525,500.00,BEACHFIELD SWIMMING SQUAD,                         ,COMMUNITY SAFETY,Grants & Subscriptions,Central Services to the Public
Swale Borough Council,29UM,29/06/2016,1142524,1000.00,BENSTEDS CHARITY WAR MEMORIAL FUND,                         ,COMMUNITY SAFETY,Grants & Subscriptions,Central Services to the Public
Swale Borough Council,29UM,29/06/2016,1142641,11261.12,BMR CONSTRUCTION LTD,                         ,COMMUNITY SAFETY,Capitalised Fees And Charges,Not used in this Structure
Swale Borough Council,29UM,29/06/2016,1142639,2065.00,BT DEVELOPMENTS,                         ,HOUSING SERVICES,B & B - Landlords Payments,Housing
Swale Borough Council,29UM,29/06/2016,1142588,510.00,CANNON FIRE PROTECTION LTD,09304781                 ,PROPERTY SERVICES,Service Contracts,Corporate & Democratic Core
Swale Borough Council,29UM,29/06/2016,1142349,700.00,CAPITA BUSINESS SERVICES LTD,                         ,REVENUE SERVICES,Computer Equipment & Materials,Housing
Swale Borough Council,29UM,29/06/2016,1142414,2228.33,CHILDREN AND FAMILIES LTD,                         ,COMMUNITY SAFETY,Fees And Services,Planning and Development Services
Swale Borough Council,29UM,29/06/2016,1142747,110000.00,CITRUZ (AV) LLP (DT),                         ,PROPERTY SERVICES,Settlement - New Road Dilapidation,Trading Undertaking
Swale Borough Council,29UM,29/06/2016,1142330,432.68,COMENSURA LTD,04085767                 ,HUMAN RESOURCES,Agency/Contract Staff,Internal Trading Cost Centres
Swale Borough Council,29UM,29/06/2016,1142539,7052.83,COMENSURA LTD,04085767                 ,HUMAN RESOURCES,Agency/Contract Staff,Internal Trading Cost Centres
Swale Borough Council,29UM,29/06/2016,1142744,3348.42,CO-OP BANK PLC - (DT),                         ,REVENUE SERVICES,Bank Charges Pay Point,Central Services to the Public
Swale Borough Council,29UM,29/06/2016,1142744,57.34,CO-OP BANK PLC - (DT),                         ,REVENUE SERVICES,Bank Charges Pay Point,Central Services to the Public
Swale Borough Council,29UM,29/06/2016,1142744,73.92,CO-OP BANK PLC - (DT),                         ,REVENUE SERVICES,Bank Charges Pay Point,Housing
Swale Borough Council,29UM,29/06/2016,1142744,8.06,CO-OP BANK PLC - (DT),                         ,EXCHEQUER,Bank Charges Pay Point,Internal Trading Cost Centres
Swale Borough Council,29UM,29/06/2016,1142744,51.96,CO-OP BANK PLC - (DT),                         ,EXCHEQUER,Bank Charges Pay Point,Internal Trading Cost Centres
Swale Borough Council,29UM,29/06/2016,1142244,99.91,DCB (KENT) LIMITED,03532339                 ,LEISURE & OPEN SPACES,Non-Planned Building Maintenance,Environmental and Regulatory Services
Swale Borough Council,29UM,29/06/2016,1142244,289.91,DCB (KENT) LIMITED,03532339                 ,LEISURE & OPEN SPACES,Non-Planned Building Maintenance,Environmental and Regulatory Services
Swale Borough Council,29UM,29/06/2016,1142244,135.00,DCB (KENT) LIMITED,03532339                 ,COMMUNITY SAFETY,Non-Planned Building Maintenance,Cultural and Related Services
Swale Borough Council,29UM,29/06/2016,1142244,8838.74,DCB (KENT) LIMITED,03532339                 ,PROPERTY SERVICES,Non-Planned Building Maintenance,Cultural and Related Services
Swale Borough Council,29UM,29/06/2016,1142244,76.37,DCB (KENT) LIMITED,03532339                 ,PROPERTY SERVICES,Non-Planned Building Maintenance,Trading Undertaking
Swale Borough Council,29UM,29/06/2016,1142244,776.25,DCB (KENT) LIMITED,03532339                 ,PROPERTY SERVICES,Non-Planned Building Maintenance,Trading Undertaking
Swale Borough Council,29UM,29/06/2016,1142244,3948.47,DCB (KENT) LIMITED,03532339                 ,PROPERTY SERVICES,Non-Planned Building Maintenance,Corporate & Democratic Core
Swale Borough Council,29UM,29/06/2016,1142244,483.94,DCB (KENT) LIMITED,03532339                 ,CONTRACT & PROCUREMENT,Non-Planned Building Maintenance,Environmental and Regulatory Services
Swale Borough Council,29UM,29/06/2016,1142244,171.25,DCB (KENT) LIMITED,03532339                 ,LEISURE & OPEN SPACES,Non-Planned Building Maintenance,Cultural and Related Services
Swale Borough Council,29UM,29/06/2016,1142244,524.25,DCB (KENT) LIMITED,03532339                 ,LEISURE & OPEN SPACES,Non-Planned Building Maintenance,Cultural and Related Services
Swale Borough Council,29UM,29/06/2016,1142245,-6830.00,DCB (KENT) LIMITED,03532339                 ,PROPERTY SERVICES,Non-Planned Building Maintenance,Cultural and Related Services
Swale Borough Council,29UM,29/06/2016,1142245,-830.40,DCB (KENT) LIMITED,03532339                 ,PROPERTY SERVICES,Non-Planned Building Maintenance,Corporate & Democratic Core
Swale Borough Council,29UM,29/06/2016,1142313,590.90,DCB (KENT) LIMITED,03532339                 ,LEISURE & OPEN SPACES,Maintenance - Grounds,Environmental and Regulatory Services
Swale Borough Council,29UM,29/06/2016,1142313,201.60,DCB (KENT) LIMITED,03532339                 ,PROPERTY SERVICES,Non-Planned Building Maintenance,Environmental and Regulatory Services
Swale Borough Council,29UM,29/06/2016,1142313,4902.70,DCB (KENT) LIMITED,03532339                 ,LEISURE & OPEN SPACES,Maintenance - Grounds,Environmental and Regulatory Services
Swale Borough Council,29UM,29/06/2016,1142313,231.25,DCB (KENT) LIMITED,03532339                 ,COMMUNITY SAFETY,Non-Planned Building Maintenance,Cultural and Related Services
Swale Borough Council,29UM,29/06/2016,1142313,122.40,DCB (KENT) LIMITED,03532339                 ,PROPERTY SERVICES,Non-Planned Building Maintenance,Trading Undertaking
Swale Borough Council,29UM,29/06/2016,1142313,21.50,DCB (KENT) LIMITED,03532339                 ,PROPERTY SERVICES,Non-Planned Building Maintenance,Trading Undertaking
Swale Borough Council,29UM,29/06/2016,1142313,661.89,DCB (KENT) LIMITED,03532339                 ,PROPERTY SERVICES,Non-Planned Building Maintenance,Corporate & Democratic Core
Swale Borough Council,29UM,29/06/2016,1142313,199.83,DCB (KENT) LIMITED,03532339                 ,PROPERTY SERVICES,Non-Planned Building Maintenance,Corporate & Democratic Core
Swale Borough Council,29UM,29/06/2016,1142313,279.74,DCB (KENT) LIMITED,03532339                 ,PROPERTY SERVICES,Non-Planned Building Maintenance,Corporate & Democratic Core
Swale Borough Council,29UM,29/06/2016,1142313,551.48,DCB (KENT) LIMITED,03532339                 ,PROPERTY SERVICES,Non-Planned Building Maintenance,Corporate & Democratic Core
Swale Borough Council,29UM,29/06/2016,1142313,171.23,DCB (KENT) LIMITED,03532339                 ,PROPERTY SERVICES,Non-Planned Building Maintenance,Corporate & Democratic Core
Swale Borough Council,29UM,29/06/2016,1142313,36.45,DCB (KENT) LIMITED,03532339                 ,PROPERTY SERVICES,Non-Planned Building Maintenance,Corporate & Democratic Core
Swale Borough Council,29UM,29/06/2016,1142313,22.50,DCB (KENT) LIMITED,03532339                 ,PROPERTY SERVICES,Non-Planned Building Maintenance,Corporate & Democratic Core
Swale Borough Council,29UM,29/06/2016,1142313,102.56,DCB (KENT) LIMITED,03532339                 ,PROPERTY SERVICES,Non-Planned Building Maintenance,Corporate & Democratic Core
Swale Borough Council,29UM,29/06/2016,1142313,423.91,DCB (KENT) LIMITED,03532339                 ,PROPERTY SERVICES,Non-Planned Building Maintenance,Corporate & Democratic Core
Swale Borough Council,29UM,29/06/2016,1142313,140.32,DCB (KENT) LIMITED,03532339                 ,PROPERTY SERVICES,Non-Planned Building Maintenance,Corporate & Democratic Core
Swale Borough Council,29UM,29/06/2016,1142313,254.16,DCB (KENT) LIMITED,03532339                 ,PROPERTY SERVICES,Non-Planned Building Maintenance,Corporate & Democratic Core
Swale Borough Council,29UM,29/06/2016,1142313,821.60,DCB (KENT) LIMITED,03532339                 ,LEISURE & OPEN SPACES,Non-Planned Building Maintenance,Cultural and Related Services
Swale Borough Council,29UM,29/06/2016,1142313,1417.34,DCB (KENT) LIMITED,03532339                 ,CONTRACT & PROCUREMENT,Non-Planned Building Maintenance,Environmental and Regulatory Services
Swale Borough Council,29UM,29/06/2016,1142706,4200.00,DOLPHIN STAIRLIFTS (KENT),04181846                 ,HOUSING SERVICES,Housing Renovation Grants,Not used in this Structure
Swale Borough Council,29UM,29/06/2016,1142483,304.23,EDF ENERGY,2228297                  ,CONTRACT & PROCUREMENT,Electricity,Environmental and Regulatory Services
Swale Borough Council,29UM,29/06/2016,1142620,470.00,EVEGATE PUBLISHING LTD,                         ,ECONOMIC DEVELOPMENT,Fees And Services,Planning and Development Services
Swale Borough Council,29UM,29/06/2016,1142671,1460.00,FAMILY HOMES,                         ,HOUSING SERVICES,RDS - Landlord claim on Bond Scheme,Housing
Swale Borough Council,29UM,29/06/2016,1142631,1500.00,FAVERSHAM CARNIVAL CLUB,                         ,DEMOCRATIC & ELECTORAL SERVICES,Payments in Year,Ledger/Suspense Codes
Swale Borough Council,29UM,29/06/2016,1142693,1100.00,GHYLLSIDE LTD,644979                   ,DEMOCRATIC & ELECTORAL SERVICES,Hire Of Premises,Ledger/Suspense Codes
Swale Borough Council,29UM,29/06/2016,1142599,254.45,HARRISONS PROPERTY SURVEYORS LTD,                         ,FINANCIAL SERVICES,Awaiting Allocation,Ledger/Suspense Codes
Swale Borough Council,29UM,29/06/2016,1142627,3934.10,HEADLEY BROTHERS LIMITED,00491836                 ,COMMUNICATIONS,Developing & Printing,Corporate & Democratic Core
Swale Borough Council,29UM,29/06/2016,1142710,726.13,HIGHER ELEVATION LTD,                         ,HOUSING SERVICES,Housing Renovation Grants,Not used in this Structure
Swale Borough Council,29UM,29/06/2016,1142232,783.15,HMC COMPLIANCE LTD,                         ,PROPERTY SERVICES,Service Contracts,Corporate & Democratic Core
Swale Borough Council,29UM,29/06/2016,1142713,559.50,HUBBARD & HOUGHTON CONSTRUCTION LTD,                         ,HOUSING SERVICES,Housing Renovation Grants,Not used in this Structure
Swale Borough Council,29UM,29/06/2016,1142714,1166.17,HUBBARD & HOUGHTON CONSTRUCTION LTD,                         ,HOUSING SERVICES,Housing Renovation Grants,Not used in this Structure
Swale Borough Council,29UM,29/06/2016,1142715,621.00,HUBBARD & HOUGHTON CONSTRUCTION LTD,                         ,HOUSING SERVICES,Housing Renovation Grants,Not used in this Structure
Swale Borough Council,29UM,29/06/2016,1142716,5382.00,HUBBARD & HOUGHTON CONSTRUCTION LTD,                         ,HOUSING SERVICES,Housing Renovation Grants,Not used in this Structure
Swale Borough Council,29UM,29/06/2016,1142717,855.71,HUBBARD & HOUGHTON CONSTRUCTION LTD,                         ,HOUSING SERVICES,Housing Renovation Grants,Not used in this Structure
Swale Borough Council,29UM,29/06/2016,1142495,7250.00,IKEN BUSINESS LTD,2776536                  ,MKIP LEGAL SERVICES,Computer Equipment & Materials,Internal Trading Cost Centres
Swale Borough Council,29UM,29/06/2016,1142712,527.00,J & D SYSTEMS,                         ,HOUSING SERVICES,Housing Renovation Grants,Not used in this Structure
Swale Borough Council,29UM,29/06/2016,1142711,1525.59,JCBS BUILDING SERVICES,                         ,HOUSING SERVICES,Housing Renovation Grants,Not used in this Structure
Swale Borough Council,29UM,29/06/2016,1142634,12974.00,KENT COMMUNITY HEALTH NHS TRUST,                         ,TOURISM & SPORTS DEVELOPMENT,Fees And Services,Cultural and Related Services
Swale Borough Council,29UM,29/06/2016,1142275,621.50,KENT COUNTY COUNCIL,                         ,FINANCIAL SERVICES,Fees And Services,Internal Trading Cost Centres
Swale Borough Council,29UM,29/06/2016,1142561,270.00,KENT INVICTA CHAMBER OF COMMERCE,2794615                  ,ECONOMIC DEVELOPMENT,Fees And Services,Planning and Development Services
Swale Borough Council,29UM,29/06/2016,1139551,1180.00,KENT MESSENGER LTD,505554                   ,COMMUNICATIONS,Advertising & Promotion,Internal Trading Cost Centres
Swale Borough Council,29UM,29/06/2016,1142596,19600.00,KENT POLICE,                         ,COMMUNITY SAFETY,Grants & Subscriptions,Planning and Development Services
Swale Borough Council,29UM,29/06/2016,1142601,1077.70,LEGACY TELECOM LTD,4674154                  ,ICT,Equipment Purchase,Corporate & Democratic Core
Swale Borough Council,29UM,29/06/2016,1142324,9253.00,LESSHOMELESS LIMITED,08458851                 ,HOUSING SERVICES,B & B - Landlords Payments,Housing
Swale Borough Council,29UM,29/06/2016,1142719,660.00,M.M PLUMBING & HEATING SERVICES,                         ,HOUSING SERVICES,Housing Renovation Grants,Not used in this Structure
Swale Borough Council,29UM,29/06/2016,1142500,493.50,MARINE MANAGEMENT ORGANISATION,                         ,ECONOMIC DEVELOPMENT,Regeneration Fund Expenditure,Ledger/Suspense Codes
Swale Borough Council,29UM,29/06/2016,1142700,3840.00,MAYLOW CONSTRUCTION LTD,                         ,LEISURE & OPEN SPACES,Maintenance - Grounds,Cultural and Related Services
Swale Borough Council,29UM,29/06/2016,1142649,554.00,MOBILE MINI,2862423                  ,DEMOCRATIC & ELECTORAL SERVICES,Hire Of Premises,Ledger/Suspense Codes
Swale Borough Council,29UM,29/06/2016,1142497,300.00,REDACTED PERSONAL INFORMATION,                         ,ENVIRONMENTAL RESPONSE TEAM,Fees And Services,Internal Trading Cost Centres
Swale Borough Council,29UM,29/06/2016,1142497,60.00,REDACTED PERSONAL INFORMATION,                         ,ENVIRONMENTAL RESPONSE TEAM,Fees And Services,Internal Trading Cost Centres
Swale Borough Council,29UM,29/06/2016,1142498,550.00,REDACTED PERSONAL INFORMATION,                         ,ENVIRONMENTAL RESPONSE TEAM,Fees And Services,Internal Trading Cost Centres
Swale Borough Council,29UM,29/06/2016,1142498,110.00,REDACTED PERSONAL INFORMATION,                         ,ENVIRONMENTAL RESPONSE TEAM,Fees And Services,Internal Trading Cost Centres
Swale Borough Council,29UM,29/06/2016,1142534,325.00,MR J W GATES,                         ,LEISURE & OPEN SPACES,Maintenance - Grounds,Cultural and Related Services
Swale Borough Council,29UM,29/06/2016,1142534,10.95,MR J W GATES,                         ,LEISURE & OPEN SPACES,Maintenance - Grounds,Cultural and Related Services
Swale Borough Council,29UM,29/06/2016,1142534,15.00,MR J W GATES,                         ,LEISURE & OPEN SPACES,Maintenance - Grounds,Cultural and Related Services
Swale Borough Council,29UM,29/06/2016,1142536,300.00,MR J W GATES,                         ,LEISURE & OPEN SPACES,Maintenance - Grounds,Cultural and Related Services
Swale Borough Council,29UM,29/06/2016,1142536,125.00,MR J W GATES,                         ,LEISURE & OPEN SPACES,Maintenance - Grounds,Cultural and Related Services
Swale Borough Council,29UM,29/06/2016,1142536,15.00,MR J W GATES,                         ,LEISURE & OPEN SPACES,Maintenance - Grounds,Cultural and Related Services
Swale Borough Council,29UM,29/06/2016,1142647,1125.00,MR J W GATES,                         ,LEISURE & OPEN SPACES,Maintenance - Grounds,Cultural and Related Services
Swale Borough Council,29UM,29/06/2016,1142648,250.00,MR J W GATES,                         ,LEISURE & OPEN SPACES,Maintenance - Grounds,Cultural and Related Services
Swale Borough Council,29UM,29/06/2016,1142466,2301.23,NEOPOST LIMITED,                         ,PROPERTY SERVICES,Equipment Maintenance,Internal Trading Cost Centres
Swale Borough Council,29UM,29/06/2016,1142598,1133.90,NEWAUTO LTD T/A MOGOUK,3051444                  ,SERVICE DELIVERY,Equipment Purchase,Environmental and Regulatory Services
Swale Borough Council,29UM,29/06/2016,1142526,550.00,NEWINGTON COMMUNITY SPORTS CLUB,                         ,COMMUNITY SAFETY,Grants & Subscriptions,Central Services to the Public
Swale Borough Council,29UM,29/06/2016,1142559,136.00,NEWINGTON VILLAGE HALL,                         ,DEMOCRATIC & ELECTORAL SERVICES,Hire Of Premises,Ledger/Suspense Codes
Swale Borough Council,29UM,29/06/2016,1142559,136.00,NEWINGTON VILLAGE HALL,                         ,DEMOCRATIC & ELECTORAL SERVICES,Hire Of Premises,Ledger/Suspense Codes
Swale Borough Council,29UM,29/06/2016,1142528,500.00,OASIS ACADEMY ISLE OF SHEPPEY,                         ,TOURISM & SPORTS DEVELOPMENT,Grants & Subscriptions,Cultural and Related Services
Swale Borough Council,29UM,29/06/2016,1142651,5950.00,PORTAKABIN LIMITED,685303                   ,DEMOCRATIC & ELECTORAL SERVICES,Hire Of Premises,Ledger/Suspense Codes
Swale Borough Council,29UM,29/06/2016,1142709,257.90,PRECEPT CS LIMITED,07311462                 ,HOUSING SERVICES,Housing Renovation Grants,Not used in this Structure
Swale Borough Council,29UM,29/06/2016,1142606,681.00,REDACTED PERSONAL INFORMATION,                         ,ECONOMIC DEVELOPMENT,Fees And Services,Planning and Development Services
Swale Borough Council,29UM,29/06/2016,1142750,464.58,ENTERPRISE RENT-A-CAR UK,                         ,DEMOCRATIC & ELECTORAL SERVICES,Fees And Services,Ledger/Suspense Codes
Swale Borough Council,29UM,29/06/2016,1142750,20.01,MORRISONS,                         ,DEMOCRATIC & ELECTORAL SERVICES,Fees And Services,Ledger/Suspense Codes
Swale Borough Council,29UM,29/06/2016,1142750,-200.00,ENTERPRISE RENT-A-CAR UK,                         ,DEMOCRATIC & ELECTORAL SERVICES,Fees And Services,Ledger/Suspense Codes
Swale Borough Council,29UM,29/06/2016,1142751,63.64,WICKES,,LEISURE & OPEN SPACES,Maintenance - Grounds,Environmental and Regulatory Services
Swale Borough Council,29UM,29/06/2016,1142751,4.99,WICKES,,LEISURE & OPEN SPACES,Maintenance - Grounds,Environmental and Regulatory Services
Swale Borough Council,29UM,29/06/2016,1142751,35.00,WATLING TYRES,,ENVIRONMENTAL RESPONSE TEAM,Other Vehicle Expenses,Internal Trading Cost Centres
Swale Borough Council,29UM,29/06/2016,1142751,22.95,AMAZON,,LEISURE & OPEN SPACES,Stationery,Internal Trading Cost Centres
Swale Borough Council,29UM,29/06/2016,1142751,3.00,WHITEFRIARS CAR PARK,,TOURISM & SPORTS DEVELOPMENT,Staff Travel-Buses & Trains,Internal Trading Cost Centres
Swale Borough Council,29UM,29/06/2016,1142751,28.28,HOMEBASE,,LEISURE & OPEN SPACES,Maintenance - Grounds,Cultural and Related Services
Swale Borough Council,29UM,29/06/2016,1142752,280.00,FLOWERS BY BEATRICE,,DEMOCRATIC & ELECTORAL SERVICES,AGM Expenses,Corporate & Democratic Core
Swale Borough Council,29UM,29/06/2016,1142752,7.50,WILKO,,DEMOCRATIC & ELECTORAL SERVICES,Hospitality Allowance - Mayor,Corporate & Democratic Core
Swale Borough Council,29UM,29/06/2016,1142752,11.50,TRANSPORT FOR LONDON,,DEMOCRATIC & ELECTORAL SERVICES,Hospitality Allowance - Mayor,Corporate & Democratic Core
Swale Borough Council,29UM,29/06/2016,1142752,67.30,ENTERPRISE RENT-A-CAR UK,,DEMOCRATIC & ELECTORAL SERVICES,Hospitality Allowance - Mayor,Corporate & Democratic Core
Swale Borough Council,29UM,29/06/2016,1142752,20.00,MORRISONS,,DEMOCRATIC & ELECTORAL SERVICES,Hospitality Allowance - Mayor,Corporate & Democratic Core
Swale Borough Council,29UM,29/06/2016,1142752,-200.00,ENTERPRISE RENT-A-CAR UK,,DEMOCRATIC & ELECTORAL SERVICES,Hospitality Allowance - Mayor,Corporate & Democratic Core
Swale Borough Council,29UM,29/06/2016,1142752,200.00,ENTERPRISE RENT-A-CAR UK,,DEMOCRATIC & ELECTORAL SERVICES,Hospitality Allowance - Mayor,Corporate & Democratic Core
Swale Borough Council,29UM,29/06/2016,1142753,30.00,CITIZENCARD,                         ,COMMUNITY SAFETY,Fees And Services,Planning and Development Services
Swale Borough Council,29UM,29/06/2016,1142753,232.50,DVLA,                         ,ENVIRONMENTAL RESPONSE TEAM,Other Vehicle Expenses,Internal Trading Cost Centres
Swale Borough Council,29UM,29/06/2016,1142753,3.70,SAINSBURY'S,                         ,DIRECTOR OF CORPORATE SERVICES,Catering Provisions,Internal Trading Cost Centres
Swale Borough Council,29UM,29/06/2016,1142754,95.99,GOLDWAVE INC,,COMMISSIONING & CUSTOMER CONTACT,Equipment Purchase,Internal Trading Cost Centres
Swale Borough Council,29UM,29/06/2016,1142755,40.29,HGS - STEPHENSONS,,CHIEF EXECUTIVE,Catering Provisions,Internal Trading Cost Centres
Swale Borough Council,29UM,29/06/2016,1142756,12.99,AMAZON,,REVENUE SERVICES,Stationery,Housing
Swale Borough Council,29UM,29/06/2016,1142757,453.00,HMCTS,                         ,REVENUE SERVICES,Fees And Services,Central Services to the Public
Swale Borough Council,29UM,29/06/2016,1142757,54.00,HMCTS,                         ,REVENUE SERVICES,Fees And Services,Central Services to the Public
Swale Borough Council,29UM,29/06/2016,1142758,67.20,ASDA,                         ,HOUSING SERVICES,Fuel For Contract Vehicles,Housing
Swale Borough Council,29UM,29/06/2016,1142758,15.00,CARPET TRADE SALES,                         ,HOUSING SERVICES,Staying Put - Materials,Housing
Swale Borough Council,29UM,29/06/2016,1142758,29.24,WICKES,                         ,HOUSING SERVICES,Staying Put - Materials,Housing
Swale Borough Council,29UM,29/06/2016,1142758,18.99,DUNELM,                         ,HOUSING SERVICES,Staying Put - Materials,Housing
Swale Borough Council,29UM,29/06/2016,1142758,3.74,WICKES,                         ,HOUSING SERVICES,Staying Put - Materials,Housing
Swale Borough Council,29UM,29/06/2016,1142758,66.42,ASDA,                         ,HOUSING SERVICES,Fuel For Contract Vehicles,Housing
Swale Borough Council,29UM,29/06/2016,1142758,76.16,BREWERS,                         ,HOUSING SERVICES,Staying Put - Materials,Housing
Swale Borough Council,29UM,29/06/2016,1142759,255.00,ROYAL COURT OF JUSTICE,                         ,MKIP LEGAL SERVICES,Fees And Services,Internal Trading Cost Centres
Swale Borough Council,29UM,29/06/2016,1142759,735.00,ROYAL COURT OF JUSTICE,                         ,MKIP LEGAL SERVICES,Fees And Services,Internal Trading Cost Centres
Swale Borough Council,29UM,29/06/2016,1142759,5.70,PAYBYPHONE PARKING TWBC,                         ,MKIP LEGAL SERVICES,Payroll - Car Park Fees,Internal Trading Cost Centres
Swale Borough Council,29UM,29/06/2016,1142759,-155.00,ROYAL COURT OF JUSTICE,                         ,MKIP LEGAL SERVICES,Fees And Services,Internal Trading Cost Centres
Swale Borough Council,29UM,29/06/2016,1142759,5.80,PAYBYPHONE PARKING TWBC,                         ,MKIP LEGAL SERVICES,Payroll - Car Park Fees,Internal Trading Cost Centres
Swale Borough Council,29UM,29/06/2016,1142759,5.70,PAYBYPHONE PARKING TWBC,                         ,MKIP LEGAL SERVICES,Payroll - Car Park Fees,Internal Trading Cost Centres
Swale Borough Council,29UM,29/06/2016,1142759,11.40,PAYBYPHONE PARKING TWBC,                         ,MKIP LEGAL SERVICES,Payroll - Car Park Fees,Internal Trading Cost Centres
Swale Borough Council,29UM,29/06/2016,1142759,5.80,PAYBYPHONE PARKING TWBC,                         ,MKIP LEGAL SERVICES,Payroll - Car Park Fees,Internal Trading Cost Centres
Swale Borough Council,29UM,29/06/2016,1142759,5.90,PAYBYPHONE PARKING TWBC,                         ,MKIP LEGAL SERVICES,Payroll - Car Park Fees,Internal Trading Cost Centres
Swale Borough Council,29UM,29/06/2016,1142759,5.90,PAYBYPHONE PARKING TWBC,                         ,MKIP LEGAL SERVICES,Payroll - Car Park Fees,Internal Trading Cost Centres
Swale Borough Council,29UM,29/06/2016,1142759,732.00,MAIDSTONE BOROUGH COUNCIL,                         ,MKIP LEGAL SERVICES,Payroll - Car Park Fees,Internal Trading Cost Centres
Swale Borough Council,29UM,29/06/2016,1142759,5.90,PAYBYPHONE PARKING TWBC,                         ,MKIP LEGAL SERVICES,Payroll - Car Park Fees,Internal Trading Cost Centres
Swale Borough Council,29UM,29/06/2016,1142759,5.90,PAYBYPHONE PARKING TWBC,                         ,MKIP LEGAL SERVICES,Payroll - Car Park Fees,Internal Trading Cost Centres
Swale Borough Council,29UM,29/06/2016,1142759,5.70,PAYBYPHONE PARKING TWBC,                         ,MKIP LEGAL SERVICES,Payroll - Car Park Fees,Internal Trading Cost Centres
Swale Borough Council,29UM,29/06/2016,1142759,5.90,PAYBYPHONE PARKING TWBC,                         ,MKIP LEGAL SERVICES,Payroll - Car Park Fees,Internal Trading Cost Centres
Swale Borough Council,29UM,29/06/2016,1142759,5.70,PAYBYPHONE PARKING TWBC,                         ,MKIP LEGAL SERVICES,Payroll - Car Park Fees,Internal Trading Cost Centres
Swale Borough Council,29UM,29/06/2016,1142759,5.70,PAYBYPHONE PARKING TWBC,                         ,MKIP LEGAL SERVICES,Payroll - Car Park Fees,Internal Trading Cost Centres
Swale Borough Council,29UM,29/06/2016,1142759,5.80,PAYBYPHONE PARKING TWBC,                         ,MKIP LEGAL SERVICES,Payroll - Car Park Fees,Internal Trading Cost Centres
Swale Borough Council,29UM,29/06/2016,1142759,5.80,PAYBYPHONE PARKING TWBC,                         ,MKIP LEGAL SERVICES,Payroll - Car Park Fees,Internal Trading Cost Centres
Swale Borough Council,29UM,29/06/2016,1142759,5.70,PAYBYPHONE PARKING TWBC,                         ,MKIP LEGAL SERVICES,Payroll - Car Park Fees,Internal Trading Cost Centres
Swale Borough Council,29UM,29/06/2016,1142760,34.40,SOUTHEASTERN WEB,,HOUSING SERVICES,Travel Warrants (Staff Travel),Housing
Swale Borough Council,29UM,29/06/2016,1142761,11.82,AMAZON,,ENVIRONMENTAL HEALTH,Protective Clothing,Internal Trading Cost Centres
Swale Borough Council,29UM,29/06/2016,1142761,80.00,RUSHMORE BOROUGH COUNCIL,,ENVIRONMENTAL HEALTH,Training - Courses,Corporate & Democratic Core
Swale Borough Council,29UM,29/06/2016,1142761,50.00,CIEH,,ENVIRONMENTAL HEALTH,Training - Courses,Corporate & Democratic Core
Swale Borough Council,29UM,29/06/2016,1142762,14.35,HEATING PLUMBING SUPPLIES,,COMMISSIONING & CUSTOMER CONTACT,Non-Planned Building Maintenance,Environmental and Regulatory Services
Swale Borough Council,29UM,29/06/2016,1142762,6.74,SITTINGBOURNE SHOES,,COMMISSIONING & CUSTOMER CONTACT,Equipment Purchase,Environmental and Regulatory Services
Swale Borough Council,29UM,29/06/2016,1142762,21.96,SITTINGBOURNE SHOES,,COMMISSIONING & CUSTOMER CONTACT,Equipment Purchase,Environmental and Regulatory Services
Swale Borough Council,29UM,29/06/2016,1142762,96.00,TOOLSTATION,,PROPERTY SERVICES,Non-Planned Building Maintenance,Corporate & Democratic Core
Swale Borough Council,29UM,29/06/2016,1142762,17.96,SITTINGBOURNE SHOES,,PROPERTY SERVICES,Equipment Purchase,Corporate & Democratic Core
Swale Borough Council,29UM,29/06/2016,1142392,875.00,REARDON PROPERTIES,                         ,HOUSING SERVICES,B & B - Landlords Payments,Housing
Swale Borough Council,29UM,29/06/2016,1142393,315.00,REARDON PROPERTIES,                         ,HOUSING SERVICES,B & B - Landlords Payments,Housing
Swale Borough Council,29UM,29/06/2016,1142589,784.60,REARDON PROPERTIES,                         ,HOUSING SERVICES,B & B - Landlords Payments,Housing
Swale Borough Council,29UM,29/06/2016,1142662,500.00,SHEPPEY ENTERTAINMENT ASSOCIATION,                         ,TOURISM & SPORTS DEVELOPMENT,Grants & Subscriptions,Cultural and Related Services
Swale Borough Council,29UM,29/06/2016,1142628,1198.60,SHEPPEY SUMMER CARNIVAL CLUB,                         ,DEMOCRATIC & ELECTORAL SERVICES,Payments in Year,Ledger/Suspense Codes
Swale Borough Council,29UM,29/06/2016,1142629,1198.61,SITTINGBOURNE & DISTRICT CARNIVAL ASSOC,                         ,DEMOCRATIC & ELECTORAL SERVICES,Payments in Year,Ledger/Suspense Codes
Swale Borough Council,29UM,29/06/2016,1142577,349.85,SOUTH EAST LABELS,                         ,COMMUNICATIONS,Printing - External,Internal Trading Cost Centres
Swale Borough Council,29UM,29/06/2016,1142529,750.00,SWALE COMMUNITY CENTRES,                         ,TOURISM & SPORTS DEVELOPMENT,Grants & Subscriptions,Cultural and Related Services
Swale Borough Council,29UM,29/06/2016,1142655,1915.00,TEDDSONS & SONS LTD,08945129                 ,LEISURE & OPEN SPACES,Maintenance - Grounds,Cultural and Related Services
Swale Borough Council,29UM,29/06/2016,1142655,488.00,TEDDSONS & SONS LTD,08945129                 ,LEISURE & OPEN SPACES,Maintenance - Grounds,Cultural and Related Services
Swale Borough Council,29UM,29/06/2016,1142630,1198.60,TEYNHAM CARNIVAL ASSOCIATION,                         ,DEMOCRATIC & ELECTORAL SERVICES,Payments in Year,Ledger/Suspense Codes
Swale Borough Council,29UM,29/06/2016,1142696,150.00,THE CARMELITES,                         ,DEMOCRATIC & ELECTORAL SERVICES,Hire Of Premises,Ledger/Suspense Codes
Swale Borough Council,29UM,29/06/2016,1142696,150.00,THE CARMELITES,                         ,DEMOCRATIC & ELECTORAL SERVICES,Hire Of Premises,Ledger/Suspense Codes
Swale Borough Council,29UM,29/06/2016,1142538,500.00,THE EVENTS OFFICE LTD,                         ,ECONOMIC DEVELOPMENT,Fees And Services,Planning and Development Services
Swale Borough Council,29UM,29/06/2016,1142527,750.00,THE HISTORICAL RESEARCH GROUP OF SITTINGBOURNE,                         ,TOURISM & SPORTS DEVELOPMENT,Grants & Subscriptions,Cultural and Related Services
Swale Borough Council,29UM,29/06/2016,1142668,285.00,THE RURAL SERVICES PARTNERSHIP LTD,                         ,DEMOCRATIC & ELECTORAL SERVICES,Conference,Corporate & Democratic Core
Swale Borough Council,29UM,29/06/2016,1142532,498.00,THREE TOWNS OFFICE EQUIPMENT LTD,                         ,REVENUE SERVICES,Furniture,Central Services to the Public
Swale Borough Council,29UM,29/06/2016,1142704,8043.30,TLC STAIRLIFTS LTD,OC337646                 ,HOUSING SERVICES,Housing Renovation Grants,Not used in this Structure
Swale Borough Council,29UM,29/06/2016,1142276,1570.00,TRAFALGAR TAVERN LTD,07999329                 ,HOUSING SERVICES,B & B - Landlords Payments,Housing
Swale Borough Council,29UM,29/06/2016,1142480,1120.00,TRAFALGAR TAVERN LTD,07999329                 ,HOUSING SERVICES,B & B - Landlords Payments,Housing
Swale Borough Council,29UM,29/06/2016,1142669,1055.00,TRAFALGAR TAVERN LTD,07999329                 ,HOUSING SERVICES,B & B - Landlords Payments,Housing
Swale Borough Council,29UM,29/06/2016,1142582,1230.00,VENN GROUP LIMITED,                         ,MKIP LEGAL SERVICES,Agency/Contract Staff,Internal Trading Cost Centres
Swale Borough Council,29UM,29/06/2016,1142583,922.50,VENN GROUP LIMITED,                         ,MKIP LEGAL SERVICES,Agency/Contract Staff,Internal Trading Cost Centres
Swale Borough Council,29UM,29/06/2016,1142584,1480.00,VENN GROUP LIMITED,                         ,MKIP LEGAL SERVICES,Agency/Contract Staff,Internal Trading Cost Centres
Swale Borough Council,29UM,29/06/2016,1142585,900.00,VENN GROUP LIMITED,                         ,MKIP LEGAL SERVICES,Agency/Contract Staff,Internal Trading Cost Centres
Swale Borough Council,29UM,29/06/2016,1142586,881.50,VENN GROUP LIMITED,                         ,MKIP LEGAL SERVICES,Agency/Contract Staff,Internal Trading Cost Centres
Swale Borough Council,29UM,29/06/2016,1142566,675.00,VISIT KENT,                         ,TOURISM & SPORTS DEVELOPMENT,Fees And Services,Cultural and Related Services
Swale Borough Council,29UM,29/06/2016,1142370,1380.99,WHISTL UK LIMITED,04417047                 ,REVENUE SERVICES,Postage,Central Services to the Public
Swale Borough Council,29UM,29/06/2016,1142370,690.49,WHISTL UK LIMITED,04417047                 ,REVENUE SERVICES,Postage,Housing
Swale Borough Council,29UM,29/06/2016,1142370,2249.55,WHISTL UK LIMITED,04417047                 ,PROPERTY SERVICES,Postage,Holding Codes
Swale Borough Council,29UM,29/06/2016,1142705,3214.13,WILLOW TREE HOME SOLUTIONS LTD,                         ,HOUSING SERVICES,Housing Renovation Grants,Not used in this Structure
Swale Borough Council,29UM,29/06/2016,1142707,604.26,WILLOW TREE HOME SOLUTIONS LTD,                         ,HOUSING SERVICES,Housing Renovation Grants,Not used in this Structure
Swale Borough Council,29UM,29/06/2016,1142708,635.90,WILLOW TREE HOME SOLUTIONS LTD,                         ,HOUSING SERVICES,Housing Renovation Grants,Not used in this Structure
Swale Borough Council,29UM,29/06/2016,1142746,3961.70,WORLDPAY (DT),07316500                 ,REVENUE SERVICES,Commission Paid,Central Services to the Public
Swale Borough Council,29UM,29/06/2016,1142746,274.18,WORLDPAY (DT),07316500                 ,REVENUE SERVICES,Commission Paid,Central Services to the Public
Swale Borough Council,29UM,29/06/2016,1142746,116.52,WORLDPAY (DT),07316500                 ,REVENUE SERVICES,Commission Paid,Housing
Swale Borough Council,29UM,29/06/2016,1142746,39.36,WORLDPAY (DT),07316500                 ,EXCHEQUER,Commission Paid,Internal Trading Cost Centres
Swale Borough Council,29UM,29/06/2016,1142746,1379.28,WORLDPAY (DT),07316500                 ,EXCHEQUER,Commission Paid,Internal Trading Cost Centres
Swale Borough Council,29UM,29/06/2016,1142746,419.02,WORLDPAY (DT),07316500                 ,EXCHEQUER,Commission Paid,Internal Trading Cost Centres
Swale Borough Council,29UM,29/06/2016,1142746,9.99,WORLDPAY (DT),07316500                 ,ICT,Fees And Services,Internal Trading Cost Centres
Swale Borough Council,29UM,30/06/2016,1142407,2169.46,BRITISH GAS TRADING LTD,                         ,PROPERTY SERVICES,Electricity,Trading Undertaking
Swale Borough Council,29UM,30/06/2016,1142408,-2169.46,BRITISH GAS TRADING LTD,                         ,PROPERTY SERVICES,Electricity,Trading Undertaking
